{"text_format":"3","workbook":"xlsx","n_sheets":1,"sheets":["таблица 3"],"not_rendered":{"defined_names":1},"read":"whole","date_system":"1900"}

{"sheet":"таблица 3","index":0,"n_rows":690,"n_cols":9,"rows_kept":690,"merged":[[0,3,1,3],[0,10,0,11],[2,0,2,3],[3,0,4,0],[3,1,4,1],[3,2,3,3],[6,0,15,0],[16,0,22,0],[23,0,26,0],[27,0,30,0],[31,0,34,0],[35,0,38,0],[39,0,42,0],[43,0,46,0],[47,0,50,0],[51,0,54,0],[55,0,58,0],[59,0,62,0],[63,0,66,0],[67,0,70,0],[71,0,74,0],[75,0,78,0],[79,0,82,0],[83,0,89,0],[86,1,89,1],[86,2,89,2],[86,3,89,3],[90,0,96,0],[93,1,96,1],[93,2,96,2],[93,3,96,3],[97,0,103,0],[100,1,103,1],[100,2,103,2],[100,3,103,3],[104,0,110,0],[107,1,110,1],[107,2,110,2],[107,3,110,3],[111,0,117,0],[114,1,117,1],[114,2,117,2],[114,3,117,3],[118,0,124,0],[121,1,124,1],[121,2,124,2],[121,3,124,3],[125,0,131,0],[128,1,131,1],[128,2,131,2],[128,3,131,3],[132,0,138,0],[135,1,138,1],[135,2,138,2],[135,3,138,3],[139,0,145,0],[142,1,145,1],[142,2,145,2],[142,3,145,3],[146,0,149,0],[150,0,153,0],[154,0,157,0],[158,0,161,0],[162,0,165,0],[166,0,169,0],[170,0,173,0],[174,0,177,0],[178,0,181,0],[182,0,185,0],[186,0,189,0],[190,0,193,0],[194,0,197,0],[198,0,201,0],[202,0,205,0],[206,0,209,0],[210,0,215,0],[214,1,215,1],[214,2,215,2],[214,3,215,3],[216,0,220,0],[221,0,225,0],[226,0,230,0],[231,0,235,0],[236,0,239,0],[240,0,243,0],[244,0,247,0],[248,0,251,0],[252,0,255,0],[256,0,259,0],[260,0,276,0],[277,0,282,0],[283,0,286,0],[287,0,290,0],[291,0,294,0],[295,0,298,0],[299,0,302,0],[303,0,306,0],[307,0,310,0],[311,0,314,0],[315,0,318,0],[319,0,322,0],[323,0,326,0],[327,0,330,0],[331,0,334,0],[335,0,338,0],[339,0,342,0],[343,0,346,0],[347,0,350,0],[351,0,354,0],[355,0,358,0],[359,0,362,0],[363,0,366,0],[367,0,371,0],[372,0,375,0],[376,0,379,0],[380,0,383,0],[384,0,388,0],[389,0,393,0],[394,0,397,0],[398,0,401,0],[402,0,405,0],[406,0,409,0],[410,0,413,0],[414,0,417,0],[418,0,421,0],[422,0,425,0],[426,0,429,0],[430,0,434,0],[435,0,439,0],[440,0,443,0],[444,0,447,0],[448,0,452,0],[453,0,457,0],[458,0,462,0],[463,0,467,0],[468,0,472,0],[473,0,477,0],[478,0,482,0],[483,0,487,0],[488,0,492,0],[493,0,497,0],[498,0,502,0],[503,0,507,0],[508,0,512,0],[513,0,516,0],[517,0,519,0],[520,0,523,0],[524,0,527,0],[528,0,531,0],[532,0,535,0],[536,0,539,0],[540,0,547,0],[548,0,551,0],[552,0,555,0],[556,0,559,0],[560,0,563,0],[564,0,567,0],[568,0,571,0],[572,0,575,0],[576,0,581,0],[580,1,581,1],[580,2,581,2],[580,3,581,3],[582,0,585,0],[586,0,589,0],[590,0,593,0],[594,0,597,0],[598,0,601,0],[602,0,605,0],[606,0,610,0],[611,0,615,0],[616,0,620,0],[621,0,624,0],[625,0,628,0],[629,0,634,0],[635,0,638,0],[639,0,643,0],[644,0,647,0],[648,0,651,0],[652,0,655,0],[656,0,661,0],[662,0,667,0],[669,0,679,0],[680,0,683,0],[684,0,687,0],[689,0,692,3]]}
[{"$nulls":3},"Таблица 1                                            к Приложению 3"]
[]
["Информация об изменениях объемов финансирования и целевых показателей муниципальной программы города Усолье-Сибирское \"Развитие образования\" на 2019-2027 годы \nза  2025 год"]
["Наименование программы, подпрограммы, основного мероприятия, мероприятия, проекта","Источники финансирования/Наименование целевого показателя","Предусмотренный объем финансирования (тыс. руб.)/Значение целевого показателя"]
[null,null,"Редакция программы от 10.02.2025 г. № 215-па (на начало отчетного периода)","Редакция программы от 30.12.2025 г. № 2529-па  (на конец отчетного периода)"]
[1,2,3,4]
["Муниципальная программа города Усолье-Сибирское «Развитие образования» на 2019-2027 годы","Всего:",{"$f":"C8+C9+C10+C11","v":{"v":2348208.4109500004,"d":"2,348,208.41"}},{"$f":"D8+D9+D10+D11","v":{"v":2446634.1332,"d":"2,446,634.13"}}]
[null,"Целевые средства",{"v":0,"d":"0.00"},{"$f":"2160500/1000","v":{"v":2160.5,"d":"2,160.50"}}]
[null,"Местный бюджет",{"$f":"440476446.95/1000","v":{"v":440476.44695,"d":"440,476.45"}},{"$f":"449616089.24/1000","v":{"v":449616.08924,"d":"449,616.09"}}]
[null,"Областной бюджет ",{"$f":"1862669764/1000","v":{"v":1862669.764,"d":"1,862,669.76"}},{"$f":"1843691320.44/1000","v":{"v":1843691.3204400002,"d":"1,843,691.32"}}]
[null,"Федеральный бюджет",{"$f":"45062200/1000","v":{"v":45062.2,"d":"45,062.20"}},{"$f":"151166223.52/1000","v":{"v":151166.22352,"d":"151,166.22"}}]
[null,"Целевой показатель 1.                                      Доля детей от 1 года до 8 лет, охваченных дошкольным образованием от общего числа детей, в возрасте от 1 года до 8 лет (%)",100,56.3]
[null,"Целевой показатель 2.                                  Доля успевающих учеников общеобразовательных учреждений в общем контингенте обучающихся общеобразовательных учреждений (%)",99.7,99.7]
[null,"Целевой показатель 3.                                               Доля детей, получающих услуги дополнительного образования, в общей численности детей в возрасте 5-18 лет (%)",80.1,{"v":71,"d":"71.0"}]
[null,"Целевой показатель 4.                                       Доля детей, охваченных отдыхом и оздоровлением в каникулярный период, в общей численности детей в возрасте 7-18 лет (%)",18.4,17.9]
[null,"Целевой показатель 5.                       Доля образовательных организаций, вовлеченых в реализацию национального проекта \"Образование\" (%)",100,100]
["Подпрограмма 1 «Развитие дошкольного образования города Усолье-Сибирское» на 2019-2027 годы","Всего:",{"$f":"C18+C19+C20","v":{"v":979043.86053,"d":"979,043.86"}},{"$f":"D18+D19+D20","v":{"v":984778.83968,"d":"984,778.84"}}]
[null,"Целевые средства",{"v":0,"d":"0.00"},{"$f":"1072500/1000","v":{"v":1072.5,"d":"1,072.50"}}]
[null,"Местный бюджет",{"$f":"75734760.53/1000","v":{"v":75734.76053,"d":"75,734.76"}},{"$f":"76034139.68/1000","v":{"v":76034.13968000001,"d":"76,034.14"}},{"$nulls":3},{"$f":"C25+C29+C33+C37+C41+C45+C49+C53+C57+C61+C65+C69+C73+C81+G41","v":{"v":74486.78255,"d":"74,486.78"}},{"$f":"D25+D29+D33+D37+D41+D45+D49+D53+D57+D61+D65+D69+D73+D81","v":{"v":75834.13968,"d":"75,834.14"}}]
[null,"Областной бюджет ",{"$f":"903309100/1000","v":{"v":903309.1,"d":"903,309.10"}},{"$f":"907672200/1000","v":{"v":907672.2,"d":"907,672.20"}}]
[null,"Целевой показатель 1.                              Доля детей от 1 года до 8 лет, охваченных дошкольным образованием от общего числа детей, в возрасте от 1 года до 8 лет (%)",100,56.3]
[null,"Целевой показатель 2.                         Удельный вес числа дошкольных образовательных учреждений, в которых проведен капитальный ремонт в общем числе дошкольных образовательных учреждений, здания которых требуют капитального ремонта (%)",55,0]
[null,"Целевой показатель 3.                   Количество дошкольных организаций, реализующих инициативные проекты на территории города Усолье-Сибирское (ед.)         ","-",5]
["Основное мероприятие 1.1. Обеспечение   деятельности дошкольных образовательных учреждений","Всего:",{"$f":"C25+C26","v":{"v":976462.2638099999,"d":"976,462.26"}},{"$f":"D25+D26","v":{"v":972577.64594,"d":"972,577.65"}}]
[null,"Местный бюджет",{"$f":"73153163.81/1000","v":{"v":73153.16381,"d":"73,153.16"}},{"$f":"74305445.94/1000","v":{"v":74305.44593999999,"d":"74,305.45"}}]
[null,"Областной бюджет ",{"$f":"903309100/1000","v":{"v":903309.1,"d":"903,309.10"}},{"$f":"898272200/1000","v":{"v":898272.2,"d":"898,272.20"}}]
[null,"Целевой показтель 1.                              Доля детей от 1 года до 8 лет, охваченных дошкольным образованием от общего числа детей, в возрасте от 1 года до 8 лет (%)",100,56.3]
["Основное мероприятие 1.2.   Повышение уровня профессионального роста работников дошкольных образовательных учреждений","Всего:",{"$f":"C29+C30","v":{"v":0,"d":"0.00"}},{"$f":"D29+D30","v":{"v":0,"d":"0.00"}}]
[null,"Местный бюджет",{"v":0,"d":"0.00"},{"v":0,"d":"0.00"}]
[null,"Областной бюджет ",{"v":0,"d":"0.00"},{"v":0,"d":"0.00"}]
[null,"Целевой показатель 1.                                  Доля детей от 1 года до 8 лет, охваченных дошкольным образованием от общего числа детей, в возрасте от 1 года до 8 лет (%)",100,56.3]
["Основное мероприятие 1.3. Мероприятия , направленные на выявление одаренных детей","Всего:",{"$f":"C33+C34","v":{"v":0,"d":"0.00"}},{"$f":"D33+D34","v":{"v":0,"d":"0.00"}}]
[null,"Местный бюджет",{"v":0,"d":"0.00"},{"v":0,"d":"0.00"}]
[null,"Областной бюджет ",{"v":0,"d":"0.00"},{"v":0,"d":"0.00"}]
[null,"Целевой показатель 1.                             Доля детей от 1 года до 8 лет, охваченных дошкольным образованием от общего числа детей, в возрасте от 1 года до 8 лет (%)",100,56.3]
["Основное мероприятие 1.4. Проведение ремонтных работ и мероприятий по благоустройству, оснащению в  дошкольных образовательных учреждениях","Всего:",{"$f":"C37+C38","v":{"v":1333.61874,"d":"1,333.62"}},{"$f":"D37+D38","v":{"v":1528.69374,"d":"1,528.69"}}]
[null,"Местный бюджет",{"$f":"1333618.74/1000","v":{"v":1333.61874,"d":"1,333.62"}},{"$f":"1528693.74/1000","v":{"v":1528.69374,"d":"1,528.69"}}]
[null,"Областной бюджет ",{"v":0,"d":"0.00"},{"v":0,"d":"0.00"}]
[null,"Целевой показатель 2.                  Удельный вес числа дошкольных образовательных учреждений, в которых проведен капитальный ремонт в общем числе дошкольных образовательных учреждений, здания которых требуют капитального ремонта (%)",55,0]
["Основное мероприятие 1.5. Выборочный капитальный ремонт здания МБДОУ «Детский сад № 6» по адресу: Иркутская область, г. Усолье-Сибирское, проспект Космонавтов, 6 (устройство систем вентиляции помещений пищеблока и прачечной)","Всего:",{"$f":"C41+C42","v":{"v":0,"d":"0.00"}},{"$f":"D41+D42","v":{"v":0,"d":"0.00"}}]
[null,"Местный бюджет",{"v":0,"d":"0.00"},{"v":0,"d":"0.00"}]
[null,"Областной бюджет ",{"v":0,"d":"0.00"},{"v":0,"d":"0.00"}]
[null,"Целевой показатель 2.                                             Удельный вес числа дошкольных образовательных учреждений, в которых проведен капитальный ремонт в общем числе дошкольных образовательных учреждений, здания которых требуют капитального ремонта (%)",55,0]
["Основное мероприятие 1.6. Реконструкция здания детского сада № 28 на 215 мест, расположенного по адресу Иркутская область,  г. Усолье-Сибирское, проспект Космонавтов, 12А","Всего:",{"$f":"C45+C46","v":{"v":0,"d":"0.00"}},{"$f":"D45+D46","v":{"v":0,"d":"0.00"}}]
[null,"Местный бюджет",{"v":0,"d":"0.00"},{"v":0,"d":"0.00"}]
[null,"Областной бюджет",{"v":0,"d":"0.00"},{"v":0,"d":"0.00"}]
[null,"Целевой показатель 2.                    Удельный вес числа дошкольных образовательных учреждений, в которых проведен капитальный ремонт в общем числе дошкольных образовательных учреждений, здания которых требуют капитального ремонта (%)",55,{"v":0,"d":"0.0"}]
["Основное мероприятие 1.7. Выборочный капитальный ремонт здания МБДОУ «Детский сад № 8» по адресу: Иркутская область, г. Усолье-Сибирское, ул. Крупской, 29 (ремонт кровли, фасада, козырьков)","Всего:",{"$f":"C49+C50","v":{"v":0,"d":"0.00"}},{"$f":"D49+D50","v":{"v":0,"d":"0.00"}}]
[null,"Местный бюджет",{"v":0,"d":"0.00"},{"v":0,"d":"0.00"}]
[null,"Областной бюджет ",{"v":0,"d":"0.00"},{"v":0,"d":"0.00"}]
[null,"Целевой показатель 2.                      Удельный вес числа дошкольных образовательных учреждений, в которых проведен капитальный ремонт в общем числе дошкольных образовательных учреждений, здания которых требуют капитального ремонта (%)",55,{"v":0,"d":"0.0"}]
["Основное мероприятие 1.8.  Выборочный капитальный ремонт здания МБДОУ «Д/с № 26» по адресу: Иркутская область, г. Усолье-Сибирское, проспект Комсомольский, 22 (замена заполнений оконных проемов)","Всего:",{"$f":"C53+C54","v":{"v":0,"d":"0.00"}},{"$f":"D53+D54","v":{"v":0,"d":"0.00"}}]
[null,"Местный бюджет",{"v":0,"d":"0.00"},{"v":0,"d":"0.00"}]
[null,"Областной бюджет ",{"v":0,"d":"0.00"},{"v":0,"d":"0.00"}]
[null,"Целевой показатель 2.                                     Удельный вес числа дошкольных образовательных учреждений, в которых проведен капитальный ремонт в общем числе дошкольных образовательных учреждений, здания которых требуют капитального ремонта (%)",55,{"v":0,"d":"0.0"}]
["Основное мероприятие 1.9.  Выборочный капитальный ремонт здания муниципального бюджетного дошкольного образовательного учреждения «Детский сад общеразвивающего вида № 42» (ремонт фасада и замена окон), расположенного по адресу: Иркутская область, г. Усолье-Сибирское, ул. Толбухина, 13","Всего:",{"$f":"C57+C58","v":{"v":0,"d":"0.00"}},{"$f":"D57+D58","v":{"v":0,"d":"0.00"}}]
[null,"Местный бюджет",{"v":0,"d":"0.00"},{"v":0,"d":"0.00"}]
[null,"Областной бюджет ",{"v":0,"d":"0.00"},{"v":0,"d":"0.00"}]
[null,"Целевой показатель 2.                   Удельный вес числа дошкольных образовательных учреждений, в которых проведен капитальный ремонт в общем числе дошкольных образовательных учреждений, здания которых требуют капитального ремонта (%)",55,{"v":0,"d":"0.0"}]
["Основное мероприятие 1.10.  Выборочный капитальный ремонт теплового узла здания муниципального бюджетного дошкольного образовательного учреждения «Детский сад № 43», расположенного по адресу: Иркутская область, г. Усолье-Сибирское, проспект Красных Партизан, 28","Всего:",{"$f":"C61+C62","v":{"v":0,"d":"0.00"}},{"$f":"D61+D62","v":{"v":0,"d":"0.00"}}]
[null,"Местный бюджет",{"v":0,"d":"0.00"},{"v":0,"d":"0.00"}]
[null,"Областной бюджет ",{"v":0,"d":"0.00"},{"v":0,"d":"0.00"}]
[null,"Целевой показатель 2.                                      Удельный вес числа дошкольных образовательных учреждений, в которых проведен капитальный ремонт в общем числе дошкольных образовательных учреждений, здания которых требуют капитального ремонта (%)",55,0]
["Основное мероприятие 1.11. Выборочный капитальный ремонт здания МБДОУ «Детский сад 5» по адресу: Иркутская область, г. Усолье-Сибирское, проспект Космонавтов, д. 46 А","Всего:",{"$f":"C65+C66","v":{"v":0,"d":"0.00"}},{"$f":"D65+D66","v":{"v":0,"d":"0.00"}}]
[null,"Местный бюджет",{"v":0,"d":"0.00"},{"v":0,"d":"0.00"}]
[null,"Областной бюджет ",{"v":0,"d":"0.00"},{"v":0,"d":"0.00"}]
[null,"Целевой показатель 2.                      Удельный вес числа дошкольных образовательных учреждений, в которых проведен капитальный ремонт в общем числе дошкольных образовательных учреждений, здания которых требуют капитального ремонта (%)",55,0,null,null," "]
["Основное мероприятие 1.12. Выборочный капитальный ремонт здания МБДОУ «Детский сад 33» по адресу: Иркутская область, г. Усолье-Сибирское, проезд Серегина, 26 (замена заполнений оконных проемов)","Всего:",{"$f":"C69+C70","v":{"v":0,"d":"0.00"}},{"$f":"D69+D70","v":{"v":0,"d":"0.00"}}]
[null,"Местный бюджет",{"v":0,"d":"0.00"},{"v":0,"d":"0.00"}]
[null,"Областной бюджет ",{"v":0,"d":"0.00"},{"v":0,"d":"0.00"}]
[null,"Целевой показатель 2.                         Удельный вес числа дошкольных образовательных учреждений, в которых проведен капитальный ремонт в общем числе дошкольных образовательных учреждений, здания которых требуют капитального ремонта (%)",55,0]
["Основное мероприятие 1.13. Выборочный капитальный ремонт нежилого здания склада, расположенного по адресу: Иркутская область, г. Усолье-Сибирское, проспект Космонавтов, 12 А (ремонт кровли, перекрытия, окраска фасада, установка ворот)","Всего:",{"$f":"C73+C74","v":{"v":0,"d":"0.00"}},{"$f":"D73+D74","v":{"v":0,"d":"0.00"}}]
[null,"Местный бюджет",{"v":0,"d":"0.00"},{"v":0,"d":"0.00"}]
[null,"Областной бюджет ",{"v":0,"d":"0.00"},{"v":0,"d":"0.00"}]
[null,"Целевой показатель 2.                        Удельный вес числа дошкольных образовательных учреждений, в которых проведен капитальный ремонт в общем числе дошкольных образовательных учреждений, здания которых требуют капитального ремонта (%)",55,0]
["Основное мероприятие 1.14.     «Приобретение мебели в муниципальные бюджетные дошкольные образовательные учреждения»","Всего:",{"v":0,"d":"0.0"},{"v":0,"d":"0.0"}]
[null,"Местный бюджет",{"v":0,"d":"0.0"},{"v":0,"d":"0.0"}]
[null,"Областной бюджет",{"v":0,"d":"0.0"},{"v":0,"d":"0.0"}]
[null,"Целевой показатель 2.                        Удельный вес числа дошкольных образовательных учреждений, в которых проведен капитальный ремонт в общем числе дошкольных образовательных учреждений, здания которых требуют капитального ремонта (%)",55,0]
["Основное мероприятие 1.15. Оснащение здания детского сада № 28 по адресу: г. Усолье-Сибирское, пр. Космонавтов, дом 12 \"А\"","Всего:",{"$f":"C81+C82","v":{"v":0,"d":"0.00"}},{"$f":"D81+D82","v":{"v":0,"d":"0.00"}}]
[null,"Местный бюджет",{"v":0,"d":"0.00"},{"v":0,"d":"0.00"}]
[null,"Областной бюджет",{"v":0,"d":"0.00"},{"v":0,"d":"0.00"}]
[null,"Целевой показатель 2.                      Удельный вес числа дошкольных образовательных учреждений, в которых проведен капитальный ремонт в общем числе дошкольных образовательных учреждений, здания которых требуют капитального ремонта (%)",55,0]
["Основное мероприятие 1.16. Приобретение здания МБДОУ \"Детский сад на 140 мест по адресу г.Усолье-Сибирское ул. Суворова","Всего:",{"$f":"C85+C86","v":{"v":0,"d":"0.00"}},{"$f":"D85+D86","v":{"v":0,"d":"0.00"}}]
[null,"Местный бюджет",{"v":0,"d":"0.00"},{"v":0,"d":"0.00"}]
[null,"Областной бюджет",{"v":0,"d":"0.00"},{"v":0,"d":"0.00"}]
[null,"Целевой показатель 1.                             Доля детей от 1 года до 8 лет, охваченных дошкольным образованием от общего числа детей, в возрасте от 1 года до 8 лет (%)",100,56.3]
[]
[]
[]
["Основное мероприятие 1.17. «Выборочный капитальный ремонт МБДОУ «Детский сад №22»,  по адресу: Иркутская область, город Усолье-Сибирское, проспект Космонавтов, 21А.»","Всего:",{"$f":"C92+C93","v":{"v":0,"d":"0.00"}},{"$f":"D92+D93","v":{"v":0,"d":"0.00"}}]
[null,"Местный бюджет",{"v":0,"d":"0.00"},{"v":0,"d":"0.00"}]
[null,"Областной бюджет",{"v":0,"d":"0.00"},{"v":0,"d":"0.00"}]
[null,"Целевой показатель 2.                      Удельный вес числа дошкольных образовательных учреждений, в которых проведен капитальный ремонт в общем числе дошкольных образовательных учреждений, здания которых требуют капитального ремонта (%)",55,0]
[]
[]
[]
["Основное мероприятие 1.18. Замена ограждения по периметру территории, устройство подпорной стенки МБДОУ «Детский сад №22», расположенного по адресу Иркутская обл. г.Усолье-Сибирское, пр.Космонавтов, 21А","Всего:",{"$f":"C99+C100","v":{"v":0,"d":"0.00"}},{"$f":"D99+D100","v":{"v":0,"d":"0.00"}}]
[null,"Местный бюджет",{"v":0,"d":"0.00"},{"v":0,"d":"0.00"}]
[null,"Областной бюджет",{"v":0,"d":"0.00"},{"v":0,"d":"0.00"}]
[null,"Целевой показатель 2.                      Удельный вес числа дошкольных образовательных учреждений, в которых проведен капитальный ремонт в общем числе дошкольных образовательных учреждений, здания которых требуют капитального ремонта (%)выборочного капитального ремонта.",55,0]
[]
[]
[]
["Основное мероприятие 1.19. Капитальный ремонт МБОУ \"Детский сад №6\"","Всего:",{"$f":"C106+C107","v":{"v":0,"d":"0.00"}},{"$f":"D106+D107","v":{"v":200,"d":"200.00"}}]
[null,"Местный бюджет",{"v":0,"d":"0.00"},{"$f":"200000/1000","v":{"v":200,"d":"200.00"}}]
[null,"Областной бюджет",{"v":0,"d":"0.00"},{"v":0,"d":"0.00"}]
[null,"Целевой показатель 2.                      Удельный вес числа дошкольных образовательных учреждений, в которых проведен капитальный ремонт в общем числе дошкольных образовательных учреждений, здания которых требуют капитального ремонта (%)выборочного капитального ремонта.",55,0]
[]
[]
[]
["Основное мероприятие 1.20. Замена оконных блоков МБДОУ «Детский сад №44», расположенного по адресу Иркутская обл. г.Усолье-Сибирское, пр. Красных Партизан, 46","Всего:",{"$f":"C113+C114","v":{"v":0,"d":"0.00"}},{"$f":"D113+D114","v":{"v":0,"d":"0.00"}}]
[null,"Местный бюджет",{"v":0,"d":"0.00"},{"v":0,"d":"0.00"}]
[null,"Областной бюджет",{"v":0,"d":"0.00"},{"v":0,"d":"0.00"}]
[null,"Целевой показатель 2.                      Удельный вес числа дошкольных образовательных учреждений, в которых проведен капитальный ремонт в общем числе дошкольных образовательных учреждений, здания которых требуют капитального ремонта (%)",55,0]
[]
[]
[]
["Основное мероприятие 1.21. Выборочный капитальный ремонт электрических сетей МБДОУ «Детский сад №37», расположенного по адресу Иркутская обл. г.Усолье-Сибирское, ул. Интернациональная, 44","Всего:",{"$f":"C120+C121","v":{"v":0,"d":"0.00"}},{"$f":"D120+D121","v":{"v":0,"d":"0.00"}}]
[null,"Местный бюджет",{"v":0,"d":"0.00"},{"v":0,"d":"0.00"}]
[null,"Областной бюджет",{"v":0,"d":"0.00"},{"v":0,"d":"0.00"}]
[null,"Целевой показатель 2.                      Удельный вес числа дошкольных образовательных учреждений, в которых проведен капитальный ремонт в общем числе дошкольных образовательных учреждений, здания которых требуют капитального ремонта (%)",55,0]
[]
[]
[]
["Основное мероприятие 1.22. Ремонт систем водоотведения, горячего и холодного водоснабжения МБДОУ «Детский сад №5», расположенного по адресу Иркутская обл. г.Усолье-Сибирское, пр.Космонавтов, 46А","Всего:",{"$f":"C127+C128","v":{"v":0,"d":"0.00"}},{"$f":"D127+D128","v":{"v":0,"d":"0.00"}}]
[null,"Местный бюджет",{"v":0,"d":"0.00"},{"v":0,"d":"0.00"}]
[null,"Областной бюджет",{"v":0,"d":"0.00"},{"v":0,"d":"0.00"}]
[null,"Целевой показатель 2.                      Удельный вес числа дошкольных образовательных учреждений, в которых проведен капитальный ремонт в общем числе дошкольных образовательных учреждений, здания которых требуют капитального ремонта (%)",55,0]
[]
[]
[]
["Основное мероприятие 1.23. Ремонт ограждения, фасада, полов МБДОУ «Детский сад № 18», расположенного по адресу Иркутская обл. г.Усолье-Сибирское, ул.Ленина, 80","Всего:",{"$f":"C134+C135","v":{"v":0,"d":"0.00"}},{"$f":"D134+D135","v":{"v":0,"d":"0.00"}}]
[null,"Местный бюджет",{"v":0,"d":"0.00"},{"v":0,"d":"0.00"}]
[null,"Областной бюджет",{"v":0,"d":"0.00"},{"v":0,"d":"0.00"}]
[null,"Целевой показатель 2.                      Удельный вес числа дошкольных образовательных учреждений, в которых проведен капитальный ремонт в общем числе дошкольных образовательных учреждений, здания которых требуют капитального ремонта (%)",55,0]
[]
[]
[]
["Основное мероприятие  1.24. Замена оконных блоков МБДОУ «Детский сад № 35», расположенного по адресу Иркутская обл. г.Усолье-Сибирское, ул. Стопани 59","Всего:",{"$f":"C141+C142","v":{"v":0,"d":"0.00"}},{"$f":"D141+D142","v":{"v":0,"d":"0.00"}}]
[null,"Местный бюджет",{"v":0,"d":"0.00"},{"v":0,"d":"0.00"}]
[null,"Областной бюджет",{"v":0,"d":"0.00"},{"v":0,"d":"0.00"}]
[null,"Целевой показатель 2.                      Удельный вес числа дошкольных образовательных учреждений, в которых проведен капитальный ремонт в общем числе дошкольных образовательных учреждений, здания которых требуют капитального ремонта (%)",55,0]
[]
[]
[]
["Основное мероприятие 1.25. Выборочный капитальный ремонт фасада, устройство подпорной стенки, замена оконных блоков МБДОУ «Детский сад №22», расположенного по адресу Иркутская обл. г. Усолье-Сибирское пр. Космонавтов, 21А.","Всего:",{"$f":"C148+C149","v":{"v":0,"d":"0.00"}},{"$f":"D148+D149","v":{"v":0,"d":"0.00"}}]
[null,"Местный бюджет",{"v":0,"d":"0.00"},{"v":0,"d":"0.00"}]
[null,"Областной бюджет",{"v":0,"d":"0.00"},{"v":0,"d":"0.00"}]
[null,"Целевой показатель 2.                      Удельный вес числа дошкольных образовательных учреждений, в которых проведен капитальный ремонт в общем числе дошкольных образовательных учреждений, здания которых требуют капитального ремонта (%)",55,0]
["Основное мероприятие 1.26. Ремонт системы отопления МБДОУ «Детский сад № 37», расположенного по адресу Иркутская обл. г. Усолье-Сибирское, ул. Интернациональная,44.","Всего:",{"$f":"C152+C153","v":{"v":0,"d":"0.00"}},{"$f":"D152+D153","v":{"v":0,"d":"0.00"}}]
[null,"Местный бюджет",{"v":0,"d":"0.00"},{"v":0,"d":"0.00"}]
[null,"Областной бюджет",{"v":0,"d":"0.00"},{"v":0,"d":"0.00"}]
[null,"Целевой показатель 2.                      Удельный вес числа дошкольных образовательных учреждений, в которых проведен капитальный ремонт в общем числе дошкольных образовательных учреждений, здания которых требуют капитального ремонта (%)",55,0]
["Основное мероприятие 1.27. Выборочный капитальный ремонт отмостков, ремонт 2х тамбуров центральных выходов и выходов из группы МБДОУ «Детский сад № 5», расположенного по адресу Иркутская обл. г. Усолье-Сибирское», пр. Космонавтов,46А.","Всего:",{"$f":"C156+C157","v":{"v":0,"d":"0.00"}},{"$f":"D156+D157","v":{"v":0,"d":"0.00"}}]
[null,"Местный бюджет",{"v":0,"d":"0.00"},{"v":0,"d":"0.00"}]
[null,"Областной бюджет",{"v":0,"d":"0.00"},{"v":0,"d":"0.00"}]
[null,"Целевой показатель 2.                      Удельный вес числа дошкольных образовательных учреждений, в которых проведен капитальный ремонт в общем числе дошкольных образовательных учреждений, здания которых требуют капитального ремонта (%)",55,0]
["Основное мероприятие 1.28.  Выборочный капитальный ремонт системы электроснабжения МБДОУ «Детский сад № 35», расположенного по адресу Иркутская обл. г. Усолье-Сибирское, ул. Стопани,59.","Всего:",{"$f":"C160+C161","v":{"v":0,"d":"0.00"}},{"$f":"D160+D161","v":{"v":0,"d":"0.00"}}]
[null,"Местный бюджет",{"v":0,"d":"0.00"},{"v":0,"d":"0.00"}]
[null,"Областной бюджет",{"v":0,"d":"0.00"},{"v":0,"d":"0.00"}]
[null,"Целевой показатель 2.                      Удельный вес числа дошкольных образовательных учреждений, в которых проведен капитальный ремонт в общем числе дошкольных образовательных учреждений, здания которых требуют капитального ремонта (%)",55,0]
["Основное мероприятие 1.29. Замена оконных блоков МДОУ «Детский сад №25», расположенного по адресу Иркутская обл. г. Усолье-Сибирское, пр. Комсомольский,34.","Всего:",{"$f":"C164+C165","v":{"v":0,"d":"0.00"}},{"$f":"D164+D165","v":{"v":0,"d":"0.00"}}]
[null,"Местный бюджет",{"v":0,"d":"0.00"},{"v":0,"d":"0.00"}]
[null,"Областной бюджет",{"v":0,"d":"0.00"},{"v":0,"d":"0.00"}]
[null,"Целевой показатель 2.                      Удельный вес числа дошкольных образовательных учреждений, в которых проведен капитальный ремонт в общем числе дошкольных образовательных учреждений, здания которых требуют капитального ремонта (%)",55,0]
["Основное мероприятие 1.30. Капитальный ремонт систем ХВС, ГВС и водоотведения МБДОУ «Детский сад № 7» расположенного по адресу Иркутская обл. г. Усолье-Сибирское, ул. Толбухина, 36.","Всего:",{"$f":"C168+C169","v":{"v":0,"d":"0.00"}},{"$f":"D168+D169","v":{"v":0,"d":"0.00"}}]
[null,"Местный бюджет",{"v":0,"d":"0.00"},{"v":0,"d":"0.00"}]
[null,"Областной бюджет",{"v":0,"d":"0.00"},{"v":0,"d":"0.00"}]
[null,"Целевой показатель 2.                      Удельный вес числа дошкольных образовательных учреждений, в которых проведен капитальный ремонт в общем числе дошкольных образовательных учреждений, здания которых требуют капитального ремонта (%)",55,0]
["Основное мероприятие  1.31. Ремонт системы электроснабжения и электроосвещения МБДОУ «Детский сад № 39», расположенного по адресу Иркутская обл. г. Усолье-Сибирское, Интернациональная,18.","Всего:",{"$f":"C172+C173","v":{"v":0,"d":"0.00"}},{"$f":"D172+D173","v":{"v":0,"d":"0.00"}}]
[null,"Местный бюджет",{"v":0,"d":"0.00"},{"v":0,"d":"0.00"}]
[null,"Областной бюджет",{"v":0,"d":"0.00"},{"v":0,"d":"0.00"}]
[null,"Целевой показатель 2.                      Удельный вес числа дошкольных образовательных учреждений, в которых проведен капитальный ремонт в общем числе дошкольных образовательных учреждений, здания которых требуют капитального ремонта (%)",55,0]
["Основное мероприятие 1.32. Выборочный капитальный ремонт систем электроснабжения, электроосвещения» МДОУ «Детский сад № 32», расположенного по адресу Иркутская обл. г. Усолье-Сибирское, ул. Толбухина,48.","Всего:",{"$f":"C176+C177","v":{"v":0,"d":"0.00"}},{"$f":"D176+D177","v":{"v":0,"d":"0.00"}}]
[null,"Местный бюджет",{"v":0,"d":"0.00"},{"v":0,"d":"0.00"}]
[null,"Областной бюджет",{"v":0,"d":"0.00"},{"v":0,"d":"0.00"}]
[null,"Целевой показатель 2.                      Удельный вес числа дошкольных образовательных учреждений, в которых проведен капитальный ремонт в общем числе дошкольных образовательных учреждений, здания которых требуют капитального ремонта (%)",55,0]
["Основное мероприятие 1.33. Ремонт системы отопления, замена индивидуального теплового пункта МДОУ «Детский сад № 32», расположенного по адресу Иркутская обл. г. Усолье-Сибирское, ул. Толбухина,48.","Всего:",{"$f":"C180+C181","v":{"v":0,"d":"0.00"}},{"$f":"D180+D181","v":{"v":0,"d":"0.00"}}]
[null,"Местный бюджет",{"v":0,"d":"0.00"},{"v":0,"d":"0.00"}]
[null,"Областной бюджет",{"v":0,"d":"0.00"},{"v":0,"d":"0.00"}]
[null,"Целевой показатель 2.                      Удельный вес числа дошкольных образовательных учреждений, в которых проведен капитальный ремонт в общем числе дошкольных образовательных учреждений, здания которых требуют капитального ремонта (%)",55,0]
["Основное мероприятие 1.34. Капитальный ремонт овощехранилища МДОУ «Детский сад № 32», расположенного по адресу Иркутская обл. г. Усолье-Сибирское, ул. Толбухина,48.","Всего:",{"$f":"C184+C185","v":{"v":0,"d":"0.00"}},{"$f":"D184+D185","v":{"v":0,"d":"0.00"}}]
[null,"Местный бюджет",{"v":0,"d":"0.00"},{"v":0,"d":"0.00"}]
[null,"Областной бюджет",{"v":0,"d":"0.00"},{"v":0,"d":"0.00"}]
[null,"Целевой показатель 2.                      Удельный вес числа дошкольных образовательных учреждений, в которых проведен капитальный ремонт в общем числе дошкольных образовательных учреждений, здания которых требуют капитального ремонта (%)",55,0]
["Основное мероприятие 1.35. Капитальный ремонт здания МДОУ «Детский сад № 42», по адресу Иркутская обл. г. Усолье-Сибирское, ул.Толбухина,13 (системы ХВС, ГВС, ВК и системы электроснабжения).","Всего:",{"$f":"C188+C189","v":{"v":1247.97798,"d":"1,247.98"}},{"$f":"D188+D189","v":{"v":0,"d":"0.00"}}]
[null,"Местный бюджет",{"$f":"1247977.98/1000","v":{"v":1247.97798,"d":"1,247.98"}},{"v":0,"d":"0.00"}]
[null,"Областной бюджет",{"v":0,"d":"0.00"},{"v":0,"d":"0.00"}]
[null,"Целевой показатель 2.                      Удельный вес числа дошкольных образовательных учреждений, в которых проведен капитальный ремонт в общем числе дошкольных образовательных учреждений, здания которых требуют капитального ремонта (%)",55,0]
["Основное мероприятие 1.36. Капитальный ремонт туалетов 1,2 этажей МДОУ «Детский сад № 6», расположенного по адресу Иркутская обл. г. Усолье-Сибирское, пр.Космонавтов,6.","Всего:",{"$f":"C192+C193","v":{"v":0,"d":"0.00"}},{"$f":"D192+D193","v":{"v":0,"d":"0.00"}}]
[null,"Местный бюджет",{"v":0,"d":"0.00"},{"v":0,"d":"0.00"}]
[null,"Областной бюджет",{"v":0,"d":"0.00"},{"v":0,"d":"0.00"}]
[null,"Целевой показатель 2.                      Удельный вес числа дошкольных образовательных учреждений, в которых проведен капитальный ремонт в общем числе дошкольных образовательных учреждений, здания которых требуют капитального ремонта (%)",55,0]
["Основное мероприятие 1.37. Замена ограждения по периметру МДОУ «Детский сад № 6», расположенного по адресу Иркутская обл. г. Усолье-Сибирское, пр. Космонавтов,6.","Всего:",{"$f":"C196+C197","v":{"v":0,"d":"0.00"}},{"$f":"D196+D197","v":{"v":0,"d":"0.00"}}]
[null,"Местный бюджет",{"v":0,"d":"0.00"},{"v":0,"d":"0.00"}]
[null,"Областной бюджет",{"v":0,"d":"0.00"},{"v":0,"d":"0.00"}]
[null,"Целевой показатель 2.                      Удельный вес числа дошкольных образовательных учреждений, в которых проведен капитальный ремонт в общем числе дошкольных образовательных учреждений, здания которых требуют капитального ремонта (%)",55,0]
["Основное мероприятие 1.38. Капитальный ремонт системы отопления, водоотведения, горячего и холодного водоснабжения МДОУ «Детский сад № 1», расположенного по адресу Иркутская обл. г. Усолье-Сибирское, пр. Космонавтов 1А.","Всего:",{"$f":"C200+C201","v":{"v":0,"d":"0.00"}},{"$f":"D200+D201","v":{"v":0,"d":"0.00"}}]
[null,"Местный бюджет",{"v":0,"d":"0.00"},{"v":0,"d":"0.00"}]
[null,"Областной бюджет",{"v":0,"d":"0.00"},{"v":0,"d":"0.00"}]
[null,"Целевой показатель 2.                      Удельный вес числа дошкольных образовательных учреждений, в которых проведен капитальный ремонт в общем числе дошкольных образовательных учреждений, здания которых требуют капитального ремонта (%)",55,0]
[" Основное мероприятие 1.39. Проведение антитеррористических мероприятий в дошкольных образовательных учреждениях","Всего:",{"$f":"C204+C205","v":{"v":0,"d":"0.00"}},{"$f":"D204+D205","v":{"v":0,"d":"0.00"}}]
[null,"Местный бюджет",{"v":0,"d":"0.00"},{"v":0,"d":"0.00"}]
[null,"Областной бюджет",{"v":0,"d":"0.00"},{"v":0,"d":"0.00"}]
[null,"Целевой показатель 2.                      Удельный вес числа дошкольных образовательных учреждений, в которых проведен капитальный ремонт в общем числе дошкольных образовательных учреждений, здания которых требуют капитального ремонта (%)",55,0]
["Основное мероприятие 1.40. Строительство \"Детский сад на 140 мест в г. Усолье-Сибирское, ул. Суворова, 11А\"","Всего:",{"$f":"C208+C209","v":{"v":0,"d":"0.00"}},{"$f":"D208+D209","v":{"v":0,"d":"0.00"}}]
[null,"Местный бюджет",{"v":0,"d":"0.00"},{"v":0,"d":"0.00"}]
[null,"Областной бюджет",{"v":0,"d":"0.00"},{"v":0,"d":"0.00"}]
[null,"Целевой показатель 2.                      Удельный вес числа дошкольных образовательных учреждений, в которых проведен капитальный ремонт в общем числе дошкольных образовательных учреждений, здания которых требуют капитального ремонта (%)",55,0]
["Основное мероприятие 1.41. Современная спортивно-игровая площадка для дошколят (МБДОУ «Детский сад № 42») в рамках реализации на территории инициативных проектов, выдвигаемых для получения финансовой поддержки из бюджета Иркутской области","Всего:",{"$f":"C212+C213+C214","v":{"v":0,"d":"0.00"}},{"$f":"D212+D213+D214","v":{"v":0,"d":"0.00"}}]
[null,"Целевые средства",{"v":0,"d":"0.00"},{"v":0,"d":"0.00"}]
[null,"Местный бюджет",{"v":0,"d":"0.00"},{"v":0,"d":"0.00"}]
[null,"Областной бюджет",{"v":0,"d":"0.00"},{"v":0,"d":"0.00"}]
[null,"Целевой показатель 3. Количество дошкольных организаций, реализующих инициативные проекты на территории города Усолье-Сибирское (ед.)","-",5]
[]
["Основное мероприятие 1.42. Умный пешеход (МБДОУ «Детский сад № 33») в рамках реализации инициативных проектов, выдвигаемых для получения финансовой поддержки из бюджета Иркутской области","Всего:",{"$f":"C218+C219+C220","v":{"v":0,"d":"0.00"}},{"$f":"D218+D219+D220","v":{"v":0,"d":"0.00"}}]
[null,"Целевые средства",{"v":0,"d":"0.00"},{"v":0,"d":"0.00"}]
[null,"Местный бюджет",{"v":0,"d":"0.00"},{"v":0,"d":"0.00"}]
[null,"Областной бюджет",{"v":0,"d":"0.00"},{"v":0,"d":"0.00"}]
[null,"Целевой показатель 3. Количество дошкольных организаций, реализующих инициативные проекты на территории города Усолье-Сибирское (ед.)","-",5]
["Основное мероприятие 1.43. Детский сад - территория творчества и развития (МБДОУ «Детский сад № 35») в рамках реализации инициативных проектов, выдвигаемых для получения финансовой поддержки из бюджета Иркутской области","Всего:",{"$f":"C223+C224+C225","v":{"v":0,"d":"0.00"}},{"$f":"D223+D224+D225","v":{"v":0,"d":"0.00"}}]
[null,"Целевые средства",{"v":0,"d":"0.00"},{"v":0,"d":"0.00"}]
[null,"Местный бюджет",{"v":0,"d":"0.00"},{"v":0,"d":"0.00"}]
[null,"Областной бюджет",{"v":0,"d":"0.00"},{"v":0,"d":"0.00"}]
[null,"Целевой показатель 3. Количество дошкольных организаций, реализующих инициативные проекты на территории города Усолье-Сибирское (ед.)","-",5]
["Основное мероприятие 1.44. Текущий ремонт музыкального зала МБДОУ «Детский сад №3» с оснащением в соответствии со стандартами ФОП (МБДОУ «Детский сад № 3») в рамках реализации инициативных проектов, выдвигаемых для получения финансовой поддержки из бюджета Иркутской области","Всего:",{"$f":"C228+C229+C230","v":{"v":0,"d":"0.00"}},{"$f":"D228+D229+D230","v":{"v":0,"d":"0.00"}}]
[null,"Целевые средства",{"v":0,"d":"0.00"},{"v":0,"d":"0.00"}]
[null,"Местный бюджет",{"v":0,"d":"0.00"},{"v":0,"d":"0.00"}]
[null,"Областной бюджет",{"v":0,"d":"0.00"},{"v":0,"d":"0.00"}]
[null,"Целевой показатель 3. Количество дошкольных организаций, реализующих инициативные проекты на территории города Усолье-Сибирское (ед.)","-",5]
["Основное мероприятие 1.45. Физкультурно-оздоровительный комплекс сада (МБДОУ «Детский сад №21») в рамках реализации инициативных проектов, выдвигаемых для получения финансовой поддержки из бюджета Иркутской области","Всего:",{"$f":"C233+C234+C235","v":{"v":0,"d":"0.00"}},{"$f":"D233+D234+D235","v":{"v":0,"d":"0.00"}}]
[null,"Целевые средства",{"v":0,"d":"0.00"},{"v":0,"d":"0.00"}]
[null,"Местный бюджет",{"v":0,"d":"0.00"},{"v":0,"d":"0.00"}]
[null,"Областной бюджет",{"v":0,"d":"0.00"},{"v":0,"d":"0.00"}]
[null,"Целевой показатель 3. Количество дошкольных организаций, реализующих инициативные проекты на территории города Усолье-Сибирское (ед.)","-",5]
["Основное мероприятие 1.46. Ремонт асфальтового покрытия МБДОУ \"Детский сад №1\"","Всего:",{"v":0,"d":"0.00"},{"v":0,"d":"0.00"}]
[null,"Местный бюджет",{"v":0,"d":"0.00"},{"v":0,"d":"0.00"}]
[null,"Областной бюджет",{"v":0,"d":"0.00"},{"v":0,"d":"0.00"}]
[null,"Целевой показатель 3. Количество дошкольных организаций, реализующих инициативные проекты на территории города Усолье-Сибирское (ед.)","-",5]
["Основное мероприятие 1.47. Правила дорожные - знать каждому положено!","Всего:",{"$f":"C242+C243","v":{"v":0,"d":"0.00"}},{"$f":"D242+D243","v":{"v":2222.5,"d":"2,222.50"}}]
[null,"Целевые средства",{"v":0,"d":"0.00"},{"$f":"222500/1000","v":{"v":222.5,"d":"222.50"}}]
[null,"Областной бюджет",{"v":0,"d":"0.00"},{"$f":"2000000/1000","v":{"v":2000,"d":"2,000.00"}}]
[null,"Целевой показатель 3. Количество дошкольных организаций, реализующих инициативные проекты на территории города Усолье-Сибирское (ед.)","-",5]
["Основное мероприятие 1.48. Непоседы–спортивно-игровая площадка для дошколят","Всего:",{"$f":"C246+C247","v":{"v":0,"d":"0.00"}},{"$f":"D246+D247","v":{"v":2000,"d":"2,000.00"}}]
[null,"Целевые средства",{"v":0,"d":"0.00"},{"$f":"200000/1000","v":{"v":200,"d":"200.00"}}]
[null,"Областной бюджет",{"v":0,"d":"0.00"},{"$f":"1800000/1000","v":{"v":1800,"d":"1,800.00"}}]
[null,"Целевой показатель 3. Количество дошкольных организаций, реализующих инициативные проекты на территории города Усолье-Сибирское (ед.)","-",5]
["Основное мероприятие  1.49. Тропа здоровья","Всего:",{"$f":"C250+C251","v":{"v":0,"d":"0.00"}},{"$f":"D250+D251","v":{"v":2000,"d":"2,000.00"}}]
[null,"Целевые средства",{"v":0,"d":"0.00"},{"$f":"200000/1000","v":{"v":200,"d":"200.00"}}]
[null,"Областной бюджет",{"v":0,"d":"0.00"},{"$f":"1800000/1000","v":{"v":1800,"d":"1,800.00"}}]
[null,"Целевой показатель 3. Количество дошкольных организаций, реализующих инициативные проекты на территории города Усолье-Сибирское (ед.)","-",5]
["Основное мероприятие 1.50. Спортивно-оздоровительный комплекс \"МАЛЫШИ – КРЕПЫШИ\"","Всего:",{"$f":"C254+C255","v":{"v":0,"d":"0.00"}},{"$f":"D254+D255","v":{"v":2250,"d":"2,250.00"}}]
[null,"Целевые средства",{"v":0,"d":"0.00"},{"$f":"250000/1000","v":{"v":250,"d":"250.00"}}]
[null,"Областной бюджет",{"v":0,"d":"0.00"},{"$f":"2000000/1000","v":{"v":2000,"d":"2,000.00"}}]
[null,"Целевой показатель 3. Количество дошкольных организаций, реализующих инициативные проекты на территории города Усолье-Сибирское (ед.)","-",5]
["Основное мероприятие 1.51. Спортивная площадка","Всего:",{"$f":"C258+C259","v":{"v":0,"d":"0.00"}},{"$f":"D258+D259","v":{"v":2000,"d":"2,000.00"}}]
[null,"Целевые средства",{"v":0,"d":"0.00"},{"$f":"200000/1000","v":{"v":200,"d":"200.00"}}]
[null,"Областной бюджет",{"v":0,"d":"0.00"},{"$f":"1800000/1000","v":{"v":1800,"d":"1,800.00"}}]
[null,"Целевой показатель 3. Количество дошкольных организаций, реализующих инициативные проекты на территории города Усолье-Сибирское (ед.)","-",5]
["Подпрограмма 2 «Развитие начального общего, основного общего, среднего общего образования \nгорода Усолье-Сибирское» на 2019-2027 годы\n","Всего:",{"$f":"C262+C263+C264+C265","v":{"v":1059266.16178,"d":"1,059,266.16"}},{"$f":"D262+D263+D264+D265","v":{"v":1141669.2453700001,"d":"1,141,669.25"}}]
[null,"Целевые средства",{"v":0,"d":"0.00"},{"$f":"863000/1000","v":{"v":863,"d":"863.00"}}]
[null,"Местный бюджет",{"$f":"64198561.78/1000","v":{"v":64198.56178,"d":"64,198.56"}},{"$f":"66266545.37/1000","v":{"v":66266.54536999999,"d":"66,266.55"}},null,null,{"$f":"C279+C285+C289+C293+C297+C301+C305+C309+C313","v":{"v":63685.88681,"d":"63,685.89"}}]
[null,"Областной бюджет ",{"$f":"950005400/1000","v":{"v":950005.4,"d":"950,005.40"}},{"$f":"923373476.48/1000","v":{"v":923373.4764800001,"d":"923,373.48"}}]
[null,"Федеральный бюджет",{"$f":"45062200/1000","v":{"v":45062.2,"d":"45,062.20"}},{"$f":"151166223.52/1000","v":{"v":151166.22352,"d":"151,166.22"}}]
[null,"Целевой показатель 1.                 Доля успевающих учеников общеобразовательных учреждений в общем контингенте обучающихся общеобразовательных учреждений (%)",99.7,99.7]
[null,"Целевой показатель 2.                   Доля  обучающихся по новым федеральным государственным образовательным стандартам в общей численности обучающихся муниципальных общеобразовательных учреждений (%)",100,100]
[null,"Целевой показатель 3.                  Удельный вес числа общеобразовательных учреждений, в которых проведен капитальный ремонт в общем числе общеобразовательных учреждений, здания которых требуют капитального ремонта (%)",55,0]
[null,"Целевой показатель 4.                      Количество обучающихся, воспользовавшихся услугами общественного транспорта в целях доступности получения услуги начального общего, основного общего, среднего общего образования (чел)",{"v":2700,"d":"2,700"},{"v":2700,"d":"2,700"}]
[null,"Целевой показатель 5.                       Доля детей, обеспеченных бесплатным питьевым молоком, в общем количестве детей, нуждающихся в обеспечении бесплатным питьевым молоком (%)",100,"-"]
[null,"Целевой показатель 6.                       Доля обучающихся, получающих начальное общее образование в государственных и муниципальных образовательных организациях, получающих бесплатное горячее питание, к общему количеству обучающихся, получающих начальное общее образование в государственных и муниципальных образовательных организациях (%)",100,100]
[null,"Целевой показатель 7.                 Доля педагогических работников общеобразовательных организаций, получивших вознаграждение за классное руководство,  в общей численности педагогических работников такой категории (%)",100,100]
[null,"Целевой показатель 8.                 Количество общеобразовательных организаций, обеспеченных учебниками и учебными пособиями, а также учебно-методическими материалами, необходимыми для реализации образовательных программ (ед.)",5,5]
[null,"Целевой показатель 9.                 Количество объектов, в которых выполнены мероприятия по капитальному ремонту спортивных площадок (стадионов) и (или) благоустройству территорий муниципальных общеобразовательных организаций в городе Усолье-Сибирское, в которых созданы школьные спортивные клубы (ед.)","-","-"]
[null,"Целевой показатель 10.                 Доля  общеобразовательных организаций, в которых введена должность советник директора по взаимодействию с детскимиобщественными объединениями в государственных и муниципальных организациях города Усолье-Сибирское (%)",100,100]
[null,"Целевой показатель 11.                          Количество общеобразовательных организаций, реализующих инициативные проекты на территории города Усолье-Сибирское (ед.)","-",4]
[null,"Целевой показатель 12.  Доля общеобразовательных учреждений, оснастивших предметные кабинеты оборудованием, средствами обучения и воспитания (%)","-",71]
["Основное мероприятие 2.1.  Обеспечение деятельности общеобразовательных учреждений и доступности общего образования","Всего:",{"$f":"C279+C280+C281","v":{"v":1056869.78681,"d":"1,056,869.79"}},{"$f":"D279+D280+D281","v":{"v":1121259.98945,"d":"1,121,259.99"}}]
[null,"Местный бюджет",{"$f":"63685886.81/1000","v":{"v":63685.88681,"d":"63,685.89"}},{"$f":"65173089.45/1000","v":{"v":65173.08945,"d":"65,173.09"}}]
[null,"Областной бюджет ",{"$f":"948121700/1000","v":{"v":948121.7,"d":"948,121.70"}},{"$f":"913382900/1000","v":{"v":913382.9,"d":"913,382.90"}}]
[null,"Федеральный бюджет",{"$f":"45062200/1000","v":{"v":45062.2,"d":"45,062.20"}},{"$f":"142704000/1000","v":{"v":142704,"d":"142,704.00"}}]
[null,"Целевой показатель 1.                         Доля успевающих учеников общеобразовательных учреждений в общем контингенте обучающихся общеобразовательных учреждений (%)",99.7,99.7]
[null,"Целевой показатель 4.                     Количество обучающихся, воспользовавшихся услугами общественного транспорта в целях доступности получения услуги начального общего, основного общего, среднего общего образования (чел)",{"v":2700,"d":"2,700"},{"v":2700,"d":"2,700"}]
["Основное мероприятие 2.2.  Ремонтные работы и мероприятия по благоустройству в общеобразовательных учреждениях","Всего:",{"$f":"C285+C286","v":{"v":0,"d":"0.00"}},{"$f":"D285+D286","v":{"v":909.1059200000001,"d":"909.11"}}]
[null,"Местный бюджет",{"v":0,"d":"0.00"},{"$f":"909105.92/1000","v":{"v":909.1059200000001,"d":"909.11"}}]
[null,"Областной бюджет ",{"v":0,"d":"0.00"},{"v":0,"d":"0.00"}]
[null,"Целевой показатель 3.                         Удельный вес числа общеобразовательных учреждений, в которых проведен капитальный ремонт в общем числе общеобразовательных учреждений, здания которых требуют капитального ремонта (%)",55,0]
["Основное мероприятие 2.3. Повышение уровня профессионального роста работников общеобразовательных учреждений","Всего:",{"$f":"C289+C290","v":{"v":0,"d":"0.00"}},{"$f":"D289+D290","v":{"v":0,"d":"0.00"}}]
[null,"Местный бюджет",{"v":0,"d":"0.00"},{"v":0,"d":"0.00"}]
[null,"Областной бюджет ",{"v":0,"d":"0.00"},{"v":0,"d":"0.00"}]
[null,"Целевой показатель 2.                   Доля  обучающихся по новым федеральным государственным образовательным стандартам в общей численности обучающихся муниципальных общеобразовательных учреждений (%)",100,100]
["Осноное мероприятие 2.4. Мероприятия, направленные на выявления одаренных детей","Всего:",{"$f":"C293+C294","v":{"v":0,"d":"0.00"}},{"$f":"D293+D294","v":{"v":0,"d":"0.00"}}]
[null,"Местный бюджет",{"v":0,"d":"0.00"},{"v":0,"d":"0.00"}]
[null,"Областной бюджет",{"v":0,"d":"0.00"},{"v":0,"d":"0.00"}]
[null,"Целевой показатель 2.                   Доля  обучающихся по новым федеральным государственным образовательным стандартам в общей численности обучающихся муниципальных общеобразовательных учреждений (%)",100,100]
["Основное мероприятие 2.5. Выборочный капитальный ремонт системы отопления, замена теплового узла в мастерских и в здании МБОУ «Гимназия № 1» по адресу: Иркутская область, г. Усолье-Cибирское, ул. Толбухина, 21","Всего:",{"$f":"C297+C298","v":{"v":0,"d":"0.00"}},{"$f":"D297+D298","v":{"v":0,"d":"0.00"}}]
[null,"Местный бюджет",{"v":0,"d":"0.00"},{"v":0,"d":"0.00"}]
[null,"Областной бюджет ",{"v":0,"d":"0.00"},{"v":0,"d":"0.00"}]
[null,"Целевой показатель 3.                       Удельный вес числа общеобразовательных учреждений, в которых проведен капитальный ремонт в общем числе общеобразовательных учреждений, здания которых требуют капитального ремонта (%)",55,0]
["Основное мероприятие 2.6. Прохождение государственной экспертизы проектно-сметной документации по объекту \"Средняя общеобразовательная школа на 825 мест, расположенная по адресу: г. Усолье-Сибирское, проспект Комсомольский, 70\"","Всего:",{"$f":"C301+C302","v":{"v":0,"d":"0.00"}},{"$f":"D301+D302","v":{"v":0,"d":"0.00"}}]
[null,"Местный бюджет",{"v":0,"d":"0.00"},{"v":0,"d":"0.00"}]
[null,"Областной бюджет ",{"v":0,"d":"0.00"},{"v":0,"d":"0.00"}]
[null,"Целевой показатель 3.                       Удельный вес числа общеобразовательных учреждений, в которых проведен капитальный ремонт в общем числе общеобразовательных учреждений, здания которых требуют капитального ремонта (%)",55,0]
["Основное мероприятие 2.7.  Выборочный капитальный ремонт здания МБОУ «СОШ № 15» по адресу: Иркутская область, г. Усолье-Сибирское, ул. Розы Люксембург, д. №46 (устройство системы вентиляции спортивного зала)","Всего:",{"$f":"C305+C306","v":{"v":0,"d":"0.00"}},{"$f":"D305+D306","v":{"v":0,"d":"0.00"}}]
[null,"Местный бюджет",{"v":0,"d":"0.00"},{"v":0,"d":"0.00"}]
[null,"Областной бюджет ",{"v":0,"d":"0.00"},{"v":0,"d":"0.00"}]
[null,"Целевой показатель 3.                Удельный вес числа общеобразовательных учреждений, в которых проведен капитальный ремонт в общем числе общеобразовательных учреждений, здания которых требуют капитального ремонта (%)",55,0]
["Основное мероприятие 2.8. Приобретение средств обучения (мебели для занятий) для учебных классов в МБОУ «Гимназия № 1»","Всего:",{"$f":"C309+C310","v":{"v":0,"d":"0.00"}},{"$f":"D309+D310","v":{"v":0,"d":"0.00"}}]
[null,"Местный бюджет",{"v":0,"d":"0.00"},{"v":0,"d":"0.00"}]
[null,"Областной бюджет",{"v":0,"d":"0.00"},{"v":0,"d":"0.00"}]
[null,"Целевой показатель 3.                            Удельный вес числа общеобразовательных учреждений, в которых проведен капитальный ремонт в общем числе общеобразовательных учреждений, здания которых требуют капитального ремонта (%)",55,0]
["Основное мероприятие 2.9. Приобретение средств обучения (мебели для занятий) для учебных классов в МБОУ «СОШ № 15»","Всего:",{"$f":"C313+C314","v":{"v":0,"d":"0.00"}},{"$f":"D313+D314","v":{"v":0,"d":"0.00"}}]
[null,"Местный бюджет",{"v":0,"d":"0.00"},{"v":0,"d":"0.00"}]
[null,"Областной бюджет ",{"v":0,"d":"0.00"},{"v":0,"d":"0.00"}]
[null,"Целевой показатель 3.                        Удельный вес числа общеобразовательных учреждений, в которых проведен капитальный ремонт в общем числе общеобразовательных учреждений, здания которых требуют капитального ремонта (%)",55,0]
["Основное мероприятие 2.10. Выборочный капитальный ремонт здания МБОУ «СОШ  №5» по адресу: Иркутская область, г. Усолье-Сибирское, проспект Космонавтов, д. 1 (замена оконных блоков, ремонт пола коридора второго этажа)","Всего:",{"$f":"C317+C318","v":{"v":0,"d":"0.00"}},{"$f":"D317+D318","v":{"v":0,"d":"0.00"}}]
[null,"Местный бюджет",{"v":0,"d":"0.00"},{"v":0,"d":"0.00"}]
[null,"Областной бюджет ",{"v":0,"d":"0.00"},{"v":0,"d":"0.00"}]
[null,"Целевой показатель 3.                     Удельный вес числа общеобразовательных учреждений, в которых проведен капитальный ремонт в общем числе общеобразовательных учреждений, здания которых требуют капитального ремонта (%)",55,0]
["Основное мероприятие 2.11. «МБОУ СОШ №6 г. Усолье-Сибирское Благоустройство территории и оборудование спортивных площадок (школьных стадионов)","Всего:",{"$f":"C321+C322","v":{"v":0,"d":"0.00"}},{"$f":"D321+D322","v":{"v":0,"d":"0.00"}}]
[null,"Местный бюджет",{"v":0,"d":"0.00"},{"v":0,"d":"0.00"}]
[null,"Областной бюджет ",{"v":0,"d":"0.00"},{"v":0,"d":"0.00"}]
[null,"Целевой показатель 9.                     Количество объектов, в которых выполнены мероприятия по капитальному ремонту спортивных площадок (стадионов) и (или) благоустройству территорий муниципальных общеобразовательных организаций в городе Усолье-Сибирское, в которых созданы школьные спортивные клубы","-","-"]
["Основное мероприятие 2.12. Приобретение средств обучения и воспитания (мебели для занятий в учебных классах) ","Всего:",{"$f":"C325+C326","v":{"v":0,"d":"0.00"}},{"$f":"D325+D326","v":{"v":0,"d":"0.00"}}]
[null,"Местный бюджет",{"v":0,"d":"0.00"},{"v":0,"d":"0.00"}]
[null,"Областной бюджет ",{"v":0,"d":"0.00"},{"v":0,"d":"0.00"}]
[null,"Целевой показатель 3.                     Удельный вес числа общеобразовательных учреждений, в которых проведен капитальный ремонт в общем числе общеобразовательных учреждений, здания которых требуют капитального ремонта (%)",55,0]
["Основное мероприятие 2.13. Модернизация материально-технической базы имеющихся школьных столовых, пищеблоков, обеденных залов(приобретение технологического и холодильного оборудования)","Всего",{"$f":"C329+C330","v":{"v":0,"d":"0.00"}},{"$f":"D329+D330","v":{"v":0,"d":"0.00"}}]
[null,"Местный бюджет",{"v":0,"d":"0.00"},{"v":0,"d":"0.00"}]
[null,"Областной бюджет ",{"v":0,"d":"0.00"},{"v":0,"d":"0.00"}]
[null,"Целевой показатель 3.                     Удельный вес числа общеобразовательных учреждений, в которых проведен капитальный ремонт в общем числе общеобразовательных учреждений, здания которых требуют капитального ремонта (%)",55,0]
["Основное мероприятие 2.14. Строительство МБОУ «Средняя общеобразовательная школа на 825 мест по адресу г.Усолье-Сибирское, пр.Комсомольский, 70»","Всего:",{"$f":"C333+C334","v":{"v":0,"d":"0.00"}},{"$f":"D333+D334","v":{"v":0,"d":"0.00"}}]
[null,"Местный бюджет",{"v":0,"d":"0.00"},{"v":0,"d":"0.00"}]
[null,"Областной бюджет ",{"v":0,"d":"0.00"},{"v":0,"d":"0.00"}]
[null,"Целевой показатель 3.                     Удельный вес числа общеобразовательных учреждений, в которых проведен капитальный ремонт в общем числе общеобразовательных учреждений, здания которых требуют капитального ремонта (%)",55,0]
["Основное мероприятие 2.15. Замена оконных блоков МБОУ «СОШ №10», расположенного по адресу Иркутская обл. г.Усолье-Сибирское, проезд Серегина, 34","Всего:",{"$f":"C337+C338","v":{"v":0,"d":"0.00"}},{"$f":"D337+D338","v":{"v":0,"d":"0.00"}}]
[null,"Местный бюджет",{"v":0,"d":"0.00"},{"v":0,"d":"0.00"}]
[null,"Областной бюджет ",{"v":0,"d":"0.00"},{"v":0,"d":"0.00"}]
[null,"Целевой показатель 3.                     Удельный вес числа общеобразовательных учреждений, в которых проведен капитальный ремонт в общем числе общеобразовательных учреждений, здания которых требуют капитального ремонта (%)",55,0]
["Основное мероприятие 2.16.  Выборочный капитальный ремонт в здании мастерских, двухэтажном здании, гараже (ремонт систем отопления, водоснабжения и водоотведения, ремонт полов, замена оконных блоков и двух тепловых узлов МБОУ «Лицей №1», расположенного по адресу Иркутская обл. г.Усолье-Сибирское, пр.Комсомольский, 51","Всего:",{"$f":"C341+C342","v":{"v":0,"d":"0.00"}},{"$f":"D341+D342","v":{"v":0,"d":"0.00"}}]
[null,"Местный бюджет",{"v":0,"d":"0.00"},{"v":0,"d":"0.00"}]
[null,"Областной бюджет ",{"v":0,"d":"0.00"},{"v":0,"d":"0.00"}]
[null,"Целевой показатель 3.                     Удельный вес числа общеобразовательных учреждений, в которых проведен капитальный ремонт в общем числе общеобразовательных учреждений, здания которых требуют капитального ремонта (%)",55,0]
["Основное мероприятие 2.17. Выборочный капитальный ремонт здания МБОУ СОШ № 3,  по адресу: Иркутская область, город Усолье-Сибирское, Комсомольский проспект, дом 40.","Всего:",{"$f":"C345+C346","v":{"v":0,"d":"0.00"}},{"$f":"D345+D346","v":{"v":0,"d":"0.00"}}]
[null,"Местный бюджет",{"v":0,"d":"0.00"},{"v":0,"d":"0.00"}]
[null,"Областной бюджет ",{"v":0,"d":"0.00"},{"v":0,"d":"0.00"}]
[null,"Целевой показатель 3.                     Удельный вес числа общеобразовательных учреждений, в которых проведен капитальный ремонт в общем числе общеобразовательных учреждений, здания которых требуют капитального ремонта (%)",55,0]
["Основное мероприятие 2.18. Капитальный ремонт МБОУ «СОШ № 6», по адресу Иркутская область, город Усолье-Сибирское, ул. Коростова,35 (благоустройство территории).","Всего:",{"$f":"C349+C350","v":{"v":0,"d":"0.00"}},{"$f":"D349+D350","v":{"v":0,"d":"0.00"}}]
[null,"Местный бюджет",{"v":0,"d":"0.00"},{"v":0,"d":"0.00"}]
[null,"Областной бюджет ",{"v":0,"d":"0.00"},{"v":0,"d":"0.00"}]
[null,"Целевой показатель 3.                     Удельный вес числа общеобразовательных учреждений, в которых проведен капитальный ремонт в общем числе общеобразовательных учреждений, здания которых требуют капитального ремонта (%)",55,0]
["Основное мероприятие 2.19. Замена оконных блоков МБОУ «СОШ №6», расположенного по адресу Иркутская обл. г.Усолье-Сибирское, ул.Коростова, 35","Всего:",{"$f":"C353+C354","v":{"v":0,"d":"0.00"}},{"$f":"D353+D354","v":{"v":0,"d":"0.00"}}]
[null,"Местный бюджет",{"v":0,"d":"0.00"},{"v":0,"d":"0.00"}]
[null,"Областной бюджет ",{"v":0,"d":"0.00"},{"v":0,"d":"0.00"}]
[null,"Целевой показатель 3.                     Удельный вес числа общеобразовательных учреждений, в которых проведен капитальный ремонт в общем числе общеобразовательных учреждений, здания которых требуют капитального ремонта (%)",55,0]
["Основное мероприятие 2.20. Капитальный ремонт помещения подвала, кухни, столовой, подсобное помещение 2 этажа МБОУ «Гимназия №1», расположенного по адресу Иркутская обл. г.Усолье-Сибирское, ул.Толбухина, 21","Всего:",{"$f":"C357+C358","v":{"v":0,"d":"0.00"}},{"$f":"D357+D358","v":{"v":0,"d":"0.00"}}]
[null,"Местный бюджет",{"v":0,"d":"0.00"},{"v":0,"d":"0.00"}]
[null,"Областной бюджет ",{"v":0,"d":"0.00"},{"v":0,"d":"0.00"}]
[null,"Целевой показатель 3.                     Удельный вес числа общеобразовательных учреждений, в которых проведен капитальный ремонт в общем числе общеобразовательных учреждений, здания которых требуют капитального ремонта (%)",55,0]
["Основное мероприятие 2.21. Ремонт полов коридора 3 этажа, лестничных маршей и площадок 1,2,3 этажей, крыльца центрального входа, устройство козырька МБОУ «СОШ №17», расположенного по адресу Иркутская обл. г.Усолье-Сибирское, ул.Толбухина, 52","Всего:",{"$f":"C361+C362","v":{"v":0,"d":"0.00"}},{"$f":"D361+D362","v":{"v":0,"d":"0.00"}}]
[null,"Местный бюджет",{"v":0,"d":"0.00"},{"v":0,"d":"0.00"}]
[null,"Областной бюджет ",{"v":0,"d":"0.00"},{"v":0,"d":"0.00"}]
[null,"Целевой показатель 3.                     Удельный вес числа общеобразовательных учреждений, в которых проведен капитальный ремонт в общем числе общеобразовательных учреждений, здания которых требуют капитального ремонта (%)",55,0]
["Основное мероприятие 2.22. Устройство козырьков, ремонт цоколя, отмосток, приямков, крылец, тротуаров и проезда МБОУ «СОШ №10», расположенного по адресу Иркутская обл. г.Усолье-Сибирское, проезд Серегина, 34","Всего:",{"$f":"C365+C366","v":{"v":0,"d":"0.00"}},{"$f":"D365+D366","v":{"v":0,"d":"0.00"}}]
[null,"Местный бюджет",{"v":0,"d":"0.00"},{"v":0,"d":"0.00"}]
[null,"Областной бюджет",{"v":0,"d":"0.00"},{"v":0,"d":"0.00"}]
[null,"Целевой показатель 3.                     Удельный вес числа общеобразовательных учреждений, в которых проведен капитальный ремонт в общем числе общеобразовательных учреждений, здания которых требуют капитального ремонта (%)",55,0]
["Основное мероприятие 2.23. Капитальный ремонт системы отопления и оснащения средствами обучения и воспитания  МБОУ «СОШ №10», расположенного Иркутская обл. г. Усолье-Сибирское, проезд Серегина, 34.","Всего:",{"$f":"C369+C370+C371","v":{"v":0,"d":"0.00"}},{"$f":"D369+D370+D371","v":{"v":0,"d":"0.00"}}]
[null,"Местный бюджет",{"v":0,"d":"0.00"},{"v":0,"d":"0.00"}]
[null,"Областной бюджет",{"v":0,"d":"0.00"},{"v":0,"d":"0.00"}]
[null,"Федеральный бюджет",{"v":0,"d":"0.00"},{"v":0,"d":"0.00"}]
[null,"Целевой показатель 3.                     Удельный вес числа общеобразовательных учреждений, в которых проведен капитальный ремонт в общем числе общеобразовательных учреждений, здания которых требуют капитального ремонта (%)",55,0]
["Основное мероприятие 2.24. Приобретение средств обучения и воспитания, необходимых для оснащения учебных кабинетов МБОУ \"СОШ № 5\" ","Всего:",{"$f":"C374+C375","v":{"v":0,"d":"0.00"}},{"$f":"D374+D375","v":{"v":0,"d":"0.00"}}]
[null,"Местный бюджет",{"v":0,"d":"0.00"},{"v":0,"d":"0.00"}]
[null,"Областной бюджет",{"v":0,"d":"0.00"},{"v":0,"d":"0.00"}]
[null,"Целевой показатель 3.                     Удельный вес числа общеобразовательных учреждений, в которых проведен капитальный ремонт в общем числе общеобразовательных учреждений, здания которых требуют капитального ремонта (%)",55,0]
["Основное мероприятие 2.25. Приобретение средств обучения и воспитания, необходимых для оснащения учебных кабинетов МБОУ СОШ №16, расположенного по адресу Иркутская обл. г. Усолье-Сибирское, ул. Луначарского 31А","Всего:",{"$f":"C378+C379","v":{"v":0,"d":"0.00"}},{"$f":"D378+D379","v":{"v":0,"d":"0.00"}}]
[null,"Местный бюджет",{"v":0,"d":"0.00"},{"v":0,"d":"0.00"}]
[null,"Областной бюджет",{"v":0,"d":"0.00"},{"v":0,"d":"0.00"}]
[null,"Целевой показатель 3.                     Удельный вес числа общеобразовательных учреждений, в которых проведен капитальный ремонт в общем числе общеобразовательных учреждений, здания которых требуют капитального ремонта (%)",55,0]
["Основное мероприятие 2.26. Капитальный ремонт системы отопления МБОУ СОШ №17, расположенного по адресу Иркутская обл. г. Усолье-Сибирское, ул. Толбухина, 52","Всего:",{"$f":"C382+C383","v":{"v":0,"d":"0.00"}},{"$f":"D382+D383","v":{"v":0,"d":"0.00"}}]
[null,"Местный бюджет",{"v":0,"d":"0.00"},{"v":0,"d":"0.00"}]
[null,"Областной бюджет",{"v":0,"d":"0.00"},{"v":0,"d":"0.00"}]
[null,"Целевой показатель 3.                     Удельный вес числа общеобразовательных учреждений, в которых проведен капитальный ремонт в общем числе общеобразовательных учреждений, здания которых требуют капитального ремонта (%)",55,0]
["Основное мероприятие 2.27. Капитальный ремонт и оснащение средствами обучения и воспитания МБОУ \"СОШ № 16\" по адресу: Иркутская область, город Усолье-Сибирское, улица Луначарского, 31А (замена оконных, дверных блоков).","Всего:",{"$f":"C386+C387+C388","v":{"v":0,"d":"0.00"}},{"$f":"D386+D387+D388","v":{"v":0,"d":"0.00"}}]
[null,"Местный бюджет",{"v":0,"d":"0.00"},{"v":0,"d":"0.00"}]
[null,"Областной бюджет",{"v":0,"d":"0.00"},{"v":0,"d":"0.00"}]
[null,"Федеральный бюджет",{"v":0,"d":"0.00"},{"v":0,"d":"0.00"}]
[null,"Целевой показатель 3.                     Удельный вес числа общеобразовательных учреждений, в которых проведен капитальный ремонт в общем числе общеобразовательных учреждений, здания которых требуют капитального ремонта (%)",55,0]
["Основное мероприятие 2.28. Капитальный ремонт и оснащение средствами обучения и воспитания МБОУ \"СОШ № 13\" по адресу: Иркутская область, город Усолье-Сибирское, улица Луначарского, 31 (замена оконных блоков в нежилых зданиях школы, мастерских).","Всего:",{"$f":"C391+C392+C393","v":{"v":0,"d":"0.00"}},{"$f":"D391+D392+D393","v":{"v":0,"d":"0.00"}}]
[null,"Местный бюджет",{"v":0,"d":"0.00"},{"v":0,"d":"0.00"}]
[null,"Областной бюджет",{"v":0,"d":"0.00"},{"v":0,"d":"0.00"}]
[null,"Федеральный бюджет",{"v":0,"d":"0.00"},{"v":0,"d":"0.00"}]
[null,"Целевой показатель 3.                     Удельный вес числа общеобразовательных учреждений, в которых проведен капитальный ремонт в общем числе общеобразовательных учреждений, здания которых требуют капитального ремонта (%)",55,0]
["Основное мероприятие 2.29. Капитальный ремонт систем холодного и горячего водоснабжения и водоотведения» МБОУ СОШ №13, расположенного по адресу Иркутская обл. г. Усолье-Сибирское, ул.Луначарского 31","Всего:",{"$f":"C396+C397","v":{"v":0,"d":"0.00"}},{"$f":"D396+D397","v":{"v":0,"d":"0.00"}}]
[null,"Местный бюджет",{"v":0,"d":"0.00"},{"v":0,"d":"0.00"}]
[null,"Областной бюджет",{"v":0,"d":"0.00"},{"v":0,"d":"0.00"}]
[null,"Целевой показатель 3.                     Удельный вес числа общеобразовательных учреждений, в которых проведен капитальный ремонт в общем числе общеобразовательных учреждений, здания которых требуют капитального ремонта (%)",55,0]
["Основное мероприятие 2.30. Выборочный капитальный ремонт системы отопления МБОУ ООШ №8 имени А.А. Разгуляева, расположенного по адресу Иркутская обл. г. Усолье-Сибирское, ул. Крупской,37","Всего:",{"$f":"C400+C401","v":{"v":0,"d":"0.00"}},{"$f":"D400+D401","v":{"v":0,"d":"0.00"}}]
[null,"Местный бюджет",{"v":0,"d":"0.00"},{"v":0,"d":"0.00"}]
[null,"Областной бюджет",{"v":0,"d":"0.00"},{"v":0,"d":"0.00"}]
[null,"Целевой показатель 3.                     Удельный вес числа общеобразовательных учреждений, в которых проведен капитальный ремонт в общем числе общеобразовательных учреждений, здания которых требуют капитального ремонта (%)",55,0]
["Основное мероприятие 2.31.Капитальный ремонт МБОУ «Гимназия №9», расположенной по адресу Иркутская обл. г. Усолье-Сибирское, ул. Интернациональная, 81 (система отопления)","Всего:",{"$f":"C404+C405","v":{"v":326.37496999999996,"d":"326.37"}},{"$f":"D404+D405","v":{"v":0,"d":"0.00"}}]
[null,"Местный бюджет",{"$f":"326374.97/1000","v":{"v":326.37496999999996,"d":"326.37"}},{"v":0,"d":"0.00"}]
[null,"Областной бюджет",{"v":0,"d":"0.00"},{"v":0,"d":"0.00"}]
[null,"Целевой показатель 3.                     Удельный вес числа общеобразовательных учреждений, в которых проведен капитальный ремонт в общем числе общеобразовательных учреждений, здания которых требуют капитального ремонта (%)",55,0]
["Основное мероприятие 2.32. Замена оконных блоков МБОУ СОШ №2, расположенного по адресу Иркутская обл. г. Усолье-Сибирское, пр. Фестивальный, 11","Всего:",{"$f":"C408+C409","v":{"v":0,"d":"0.00"}},{"$f":"D408+D409","v":{"v":0,"d":"0.00"}}]
[null,"Местный бюджет",{"v":0,"d":"0.00"},{"v":0,"d":"0.00"}]
[null,"Областной бюджет",{"v":0,"d":"0.00"},{"v":0,"d":"0.00"}]
[null,"Целевой показатель 3.                     Удельный вес числа общеобразовательных учреждений, в которых проведен капитальный ремонт в общем числе общеобразовательных учреждений, здания которых требуют капитального ремонта (%)",55,0]
["Основное мероприятие 2.33. Приобретение средств обучения и воспитания, необходимых для оснащения учебных кабинетов МБОУ «Гимназия № 1», расположенного по адресу Иркутская обл. г. Усолье-Сибирское, ул. Толбухина,21","Всего:",{"$f":"C412+C413","v":{"v":0,"d":"0.00"}},{"$f":"D412+D413","v":{"v":0,"d":"0.00"}}]
[null,"Местный бюджет",{"v":0,"d":"0.00"},{"v":0,"d":"0.00"}]
[null,"Областной бюджет",{"v":0,"d":"0.00"},{"v":0,"d":"0.00"}]
[null,"Целевой показатель 3.                     Удельный вес числа общеобразовательных учреждений, в которых проведен капитальный ремонт в общем числе общеобразовательных учреждений, здания которых требуют капитального ремонта (%)",55,0]
["Основное мероприятие 2.34. Приобретение средств обучения и воспитания, необходимых для оснащения учебных кабинетов МБОУ «Гимназия № 9», расположенного по адресу Иркутская обл. г. Усолье-Сибирское, ул. Интернацтональная, 81","Всего:",{"$f":"C416+C417","v":{"v":0,"d":"0.00"}},{"$f":"D416+D417","v":{"v":0,"d":"0.00"}}]
[null,"Местный бюджет",{"v":0,"d":"0.00"},{"v":0,"d":"0.00"}]
[null,"Областной бюджет",{"v":0,"d":"0.00"},{"v":0,"d":"0.00"}]
[null,"Целевой показатель 3.                     Удельный вес числа общеобразовательных учреждений, в которых проведен капитальный ремонт в общем числе общеобразовательных учреждений, здания которых требуют капитального ремонта (%)",55,0]
["Основное мероприятие 2.35. Приобретение средств обучения и воспитания, необходимых для оснащения учебных кабинетов МБОУ «СОШ № 13», расположенного по адресу Иркутская обл. г. Усолье-Сибирское, ул. Луначарского, 31","Всего:",{"$f":"C420+C421","v":{"v":0,"d":"0.00"}},{"$f":"D420+D421","v":{"v":0,"d":"0.00"}}]
[null,"Местный бюджет",{"v":0,"d":"0.00"},{"v":0,"d":"0.00"}]
[null,"Областной бюджет",{"v":0,"d":"0.00"},{"v":0,"d":"0.00"}]
[null,"Целевой показатель 3.                     Удельный вес числа общеобразовательных учреждений, в которых проведен капитальный ремонт в общем числе общеобразовательных учреждений, здания которых требуют капитального ремонта (%)",55,0]
["Основное мероприятие 2.36. Приобретение стеллажей для библиотеки МБОУ \"Гимназия № 9\"","Всего:",{"$f":"C424+C425","v":{"v":0,"d":"0.00"}},{"$f":"D424+D425","v":{"v":0,"d":"0.00"}}]
[null,"Местный бюджет",{"v":0,"d":"0.00"},{"v":0,"d":"0.00"}]
[null,"Областной бюджет",{"v":0,"d":"0.00"},{"v":0,"d":"0.00"}]
[null,"Целевой показатель 3.                     Удельный вес числа общеобразовательных учреждений, в которых проведен капитальный ремонт в общем числе общеобразовательных учреждений, здания которых требуют капитального ремонта (%)",55,0]
["Основное мероприятие  2.37. Проведение антитеррористических мероприятий в образовательных учреждениях","Всего:",{"$f":"C428+C429","v":{"v":0,"d":"0.00"}},{"$f":"D428+D429","v":{"v":0,"d":"0.00"}}]
[null,"Местный бюджет",{"v":0,"d":"0.00"},{"v":0,"d":"0.00"}]
[null,"Областной бюджет",{"v":0,"d":"0.00"},{"v":0,"d":"0.00"}]
[null,"Целевой показатель 3.                     Удельный вес числа общеобразовательных учреждений, в которых проведен капитальный ремонт в общем числе общеобразовательных учреждений, здания которых требуют капитального ремонта (%)",55,0]
["Основное мероприятие  2.38. «Капитальный ремонт и оснащение средствами обучения и воспитания МБОУ «СОШ №6» по адресу: Иркутская область, город Усолье-Сибирское, ул. Коростова, 35».","Всего:",{"$f":"C432+C433+C434","v":{"v":0,"d":"0.00"}},{"$f":"D432+D433+D434","v":{"v":0,"d":"0.00"}}]
[null,"Местный бюджет",{"v":0,"d":"0.00"},{"v":0,"d":"0.00"}]
[null,"Областной бюджет",{"v":0,"d":"0.00"},{"v":0,"d":"0.00"}]
[null,"Федеральный бюджет",{"v":0,"d":"0.00"},{"v":0,"d":"0.00"}]
[null,"Целевой показатель 3.                     Удельный вес числа общеобразовательных учреждений, в которых проведен капитальный ремонт в общем числе общеобразовательных учреждений, здания которых требуют капитального ремонта (%)",55,0]
["Основное мероприятие  2.38.1. «Капитальный ремонт МБОУ «СОШ №6» по адресу: Иркутская область, город Усолье-Сибирское, ул. Коростова, 35 (благоустройство территории и оборудования спортивных площадок (школьный стадион)","Всего:",{"$f":"C437+C438+C439","v":{"v":0,"d":"0.00"}},{"$f":"D437+D438+D439","v":{"v":0,"d":"0.00"}}]
[null,"Местный бюджет",{"v":0,"d":"0.00"},{"v":0,"d":"0.00"}]
[null,"Областной бюджет",{"v":0,"d":"0.00"},{"v":0,"d":"0.00"}]
[null,"Федеральный бюджет",{"v":0,"d":"0.00"},{"v":0,"d":"0.00"}]
[null,"Целевой показатель 3.                     Удельный вес числа общеобразовательных учреждений, в которых проведен капитальный ремонт в общем числе общеобразовательных учреждений, здания которых требуют капитального ремонта (%)",55,0]
["Основное мероприятие  2.39. Приобретение учебников и учебных пособий, а так же учебно-методических материалов","Всего:",{"$f":"C442+C443","v":{"v":2070,"d":"2,070.00"}},{"$f":"D442+D443","v":{"v":2047.25,"d":"2,047.25"}}]
[null,"Местный бюджет",{"$f":"186300/1000","v":{"v":186.3,"d":"186.30"}},{"$f":"184350/1000","v":184.35}]
[null,"Областной бюджет",{"$f":"1883700/1000","v":{"v":1883.7,"d":"1,883.70"}},{"$f":"1862900/1000","v":{"v":1862.9,"d":"1,862.90"}}]
[null,"Целевой показатель 8.  Количество общеобразовательных организаций, обеспеченных учебниками и учебными пособиями, а также учебно-методическими материалами, необходимыми для реализации образовательных программ (ед.)",5,5]
["Основное мероприятие  2.40. Финансовое обеспечение мероприятий по обеспечению деятельности советников директора по воспитанию и взаимодействию с детскими общественными объединениями в муниципальных общеобразовательных организациях в Иркутской области","Всего:",{"$f":"C446+C447","v":{"v":0,"d":"0.00"}},{"$f":"D446+D447","v":{"v":5533,"d":"5,533.00"}}]
[null,"Областной бюджет",{"v":0,"d":"0.00"},{"$f":"276652/1000","v":{"v":276.652,"d":"276.65"}}]
[null,"Федеральный бюджет",{"v":0,"d":"0.00"},{"$f":"5256348/1000","v":{"v":5256.348,"d":"5,256.35"}}]
[null,"Целевой показатель 10.                     Доля  общеобразовательных организаций, в которых введена должность советник директора по взаимодействию с детскимиобщественными объединениями в государственных и муниципальных организациях города Усолье-Сибирское  (%)",100,100]
["Основное мероприятие 2.41. Коворкинг - центр (мобильный актовый зал) (МБОУ «Лицей №1») в рамках реализации инициативных проектов, выдвигаемых для получения финансовой поддержки из бюджета Иркутской области","Всего:",{"$f":"C450+C451+C452","v":{"v":0,"d":"0.00"}},{"$f":"D450+D451+D452","v":{"v":0,"d":"0.00"}}]
[null,"Целевые средства",{"v":0,"d":"0.00"},{"v":0,"d":"0.00"}]
[null,"Местный бюджет",{"v":0,"d":"0.00"},{"v":0,"d":"0.00"}]
[null,"Областной бюджет",{"v":0,"d":"0.00"},{"v":0,"d":"0.00"}]
[null,"Целевой показатель 11. Количество общеобразовательных организаций, реализующих инициативные проекты на территории города Усолье-Сибирское.","-",4]
["Основное мероприятие 2.42. Организация детских спортивных площадок «Доступный спорт семьи каждому» (МБОУ «СОШ №15») в рамках реализации инициативных проектов, выдвигаемых для получения финансовой поддержки из бюджета Иркутской области","Всего:",{"$f":"C455+C456+C457","v":{"v":0,"d":"0.00"}},{"$f":"D455+D456+D457","v":{"v":0,"d":"0.00"}}]
[null,"Целевые средства",{"v":0,"d":"0.00"},{"v":0,"d":"0.00"}]
[null,"Местный бюджет",{"v":0,"d":"0.00"},{"v":0,"d":"0.00"}]
[null,"Областной бюджет",{"v":0,"d":"0.00"},{"v":0,"d":"0.00"}]
[null,"Целевой показатель 11. Количество общеобразовательных организаций, реализующих инициативные проекты на территории города Усолье-Сибирское.","-",4]
["Основное мероприятие 2.43. Спорт сегодня - здоровье всегда! (МБОУ «СОШ №5»)  в рамках реализации инициативных проектов, выдвигаемых для получения финансовой поддержки из бюджета Иркутской области","Всего:",{"$f":"C460+C461+C462","v":{"v":0,"d":"0.00"}},{"$f":"D460+D461+D462","v":{"v":0,"d":"0.00"}}]
[null,"Целевые средства",{"v":0,"d":"0.00"},{"v":0,"d":"0.00"}]
[null,"Местный бюджет",{"v":0,"d":"0.00"},{"v":0,"d":"0.00"}]
[null,"Областной бюджет",{"v":0,"d":"0.00"},{"v":0,"d":"0.00"}]
[null,"Целевой показатель 11. Количество общеобразовательных организаций, реализующих инициативные проекты на территории города Усолье-Сибирское.","-",4]
["Основное мероприятие 2.44. Аллея выпускников (благоустройство школьной территории) (МБОУ «СОШ №13») в рамках реализации инициативных проектов, выдвигаемых для получения финансовой поддержки из бюджета Иркутской области","Всего:",{"$f":"C465+C466+C467","v":{"v":0,"d":"0.00"}},{"$f":"D465+D466+D467","v":{"v":0,"d":"0.00"}}]
[null,"Целевые средства",{"v":0,"d":"0.00"},{"v":0,"d":"0.00"}]
[null,"Местный бюджет",{"v":0,"d":"0.00"},{"v":0,"d":"0.00"}]
[null,"Областной бюджет",{"v":0,"d":"0.00"},{"v":0,"d":"0.00"}]
[null,"Целевой показатель 11. Количество общеобразовательных организаций, реализующих инициативные проекты на территории города Усолье-Сибирское.","-",4]
["Основное мероприятие 2.45. Через призму времени (МБОУ «СОШ №6»)  в рамках реализации инициативных проектов, выдвигаемых для получения финансовой поддержки из бюджета Иркутской области","Всего:",{"$f":"C470+C471+C472","v":{"v":0,"d":"0.00"}},{"$f":"D470+D471+D472","v":{"v":0,"d":"0.00"}}]
[null,"Целевые средства",{"v":0,"d":"0.00"},{"v":0,"d":"0.00"}]
[null,"Местный бюджет",{"v":0,"d":"0.00"},{"v":0,"d":"0.00"}]
[null,"Областной бюджет",{"v":0,"d":"0.00"},{"v":0,"d":"0.00"}]
[null,"Целевой показатель 11. Количество общеобразовательных организаций, реализующих инициативные проекты на территории города Усолье-Сибирское.","-",4]
["Основное мероприятие 2.46. Поколение ЭКОбудущее (МБОУ «Гимназия №1»)  в рамках реализации инициативных проектов, выдвигаемых для получения финансовой поддержки из бюджета Иркутской области","Всего:",{"$f":"C475+C476+C477","v":{"v":0,"d":"0.00"}},{"$f":"D475+D476+D477","v":{"v":0,"d":"0.00"}}]
[null,"Целевые средства",{"v":0,"d":"0.00"},{"v":0,"d":"0.00"}]
[null,"Местный бюджет",{"v":0,"d":"0.00"},{"v":0,"d":"0.00"}]
[null,"Областной бюджет",{"v":0,"d":"0.00"},{"v":0,"d":"0.00"}]
[null,"Целевой показатель 11. Количество общеобразовательных организаций, реализующих инициативные проекты на территории города Усолье-Сибирское.","-",4]
["Основное мероприятие 2.47. АРТ - центр дизайна и моделирования (МБОУ «Лицей № 1») в рамках реализации инициативных проектов, выдвигаемых для получения финансовой поддержки из бюджета Иркутской области","Всего:",{"$f":"C480+C481+C482","v":{"v":0,"d":"0.00"}},{"$f":"D480+D481+D482","v":{"v":0,"d":"0.00"}}]
[null,"Целевые средства",{"v":0,"d":"0.00"},{"v":0,"d":"0.00"}]
[null,"Местный бюджет",{"v":0,"d":"0.00"},{"v":0,"d":"0.00"}]
[null,"Областной бюджет",{"v":0,"d":"0.00"},{"v":0,"d":"0.00"}]
[null,"Целевой показатель 11. Количество общеобразовательных организаций, реализующих инициативные проекты на территории города Усолье-Сибирское.","-",4]
["Основное мероприятие 2.48.  Многофункциональная спортивная площадка «Достигай и побеждай!» (МБОУ «Гимназия № 1») в рамках реализации инициативных проектов, выдвигаемых для получения финансовой поддержки из бюджета Иркутской области","Всего:",{"$f":"C485+C486+C487","v":{"v":0,"d":"0.00"}},{"$f":"D485+D486+D487","v":{"v":0,"d":"0.00"}}]
[null,"Целевые средства",{"v":0,"d":"0.00"},{"v":0,"d":"0.00"}]
[null,"Местный бюджет",{"v":0,"d":"0.00"},{"v":0,"d":"0.00"}]
[null,"Областной бюджет",{"v":0,"d":"0.00"},{"v":0,"d":"0.00"}]
[null,"Целевой показатель 11. Количество общеобразовательных организаций, реализующих инициативные проекты на территории города Усолье-Сибирское.","-",4]
["Основное мероприятие 2.49.  Студия 3D дизайна и печати (МБОУ «Гимназия № 9») в рамках реализации инициативных проектов, выдвигаемых для получения финансовой поддержки из бюджета Иркутской области","Всего:",{"$f":"C490+C491+C492","v":{"v":0,"d":"0.00"}},{"$f":"D490+D491+D492","v":{"v":0,"d":"0.00"}}]
[null,"Целевые средства",{"v":0,"d":"0.00"},{"v":0,"d":"0.00"}]
[null,"Местный бюджет",{"v":0,"d":"0.00"},{"v":0,"d":"0.00"}]
[null,"Областной бюджет",{"v":0,"d":"0.00"},{"v":0,"d":"0.00"}]
[null,"Целевой показатель 11. Количество общеобразовательных организаций, реализующих инициативные проекты на территории города Усолье-Сибирское.","-",4]
["Основное мероприятие 2.50.  Центр творческого притяжения (МБОУ «СОШ № 5») в рамках реализации инициативных проектов, выдвигаемых для получения финансовой поддержки из бюджета Иркутской области","Всего:",{"$f":"C495+C496+C497","v":{"v":0,"d":"0.00"}},{"$f":"D495+D496+D497","v":{"v":0,"d":"0.00"}}]
[null,"Целевые средства",{"v":0,"d":"0.00"},{"v":0,"d":"0.00"}]
[null,"Местный бюджет",{"v":0,"d":"0.00"},{"v":0,"d":"0.00"}]
[null,"Областной бюджет",{"v":0,"d":"0.00"},{"v":0,"d":"0.00"}]
[null,"Целевой показатель 11. Количество общеобразовательных организаций, реализующих инициативные проекты на территории города Усолье-Сибирское.","-",4]
["Основное мероприятие 2.51.  История живет в музее нашем (создание открытого музейного пространства на территории МБОУ «СОШ № 13») (МБОУ «СОШ № 13») в рамках реализации инициативных проектов, выдвигаемых для получения финансовой поддержки из бюджета Иркутской области","Всего:",{"$f":"C500+C501+C502","v":{"v":0,"d":"0.00"}},{"$f":"D500+D501+D502","v":{"v":0,"d":"0.00"}}]
[null,"Целевые средства",{"v":0,"d":"0.00"},{"v":0,"d":"0.00"}]
[null,"Местный бюджет",{"v":0,"d":"0.00"},{"v":0,"d":"0.00"}]
[null,"Областной бюджет",{"v":0,"d":"0.00"},{"v":0,"d":"0.00"}]
[null,"Целевой показатель 11. Количество общеобразовательных организаций, реализующих инициативные проекты на территории города Усолье-Сибирское.","-",4]
["Основное мероприятие 2.52.  От истока к современности (МБОУ «СОШ № 12») в рамках реализации инициативных проектов, выдвигаемых для получения финансовой поддержки из бюджета Иркутской области","Всего:",{"$f":"C505+C506+C507","v":{"v":0,"d":"0.00"}},{"$f":"D505+D506+D507","v":{"v":0,"d":"0.00"}}]
[null,"Целевые средства",{"v":0,"d":"0.00"},{"v":0,"d":"0.00"}]
[null,"Местный бюджет",{"v":0,"d":"0.00"},{"v":0,"d":"0.00"}]
[null,"Областной бюджет",{"v":0,"d":"0.00"},{"v":0,"d":"0.00"}]
[null,"Целевой показатель 11. Количество общеобразовательных организаций, реализующих инициативные проекты на территории города Усолье-Сибирское.","-",4]
["Основное мероприятие 2.53.  Универсальная спортивная площадка «Чемпион» (МБОУ «СОШ № 16») в рамках реализации инициативных проектов, выдвигаемых для получения финансовой поддержки из бюджета Иркутской области","Всего:",{"$f":"C510+C511+C512","v":{"v":0,"d":"0.00"}},{"$f":"D510+D511+D512","v":{"v":0,"d":"0.00"}}]
[null,"Целевые средства",{"v":0,"d":"0.00"},{"v":0,"d":"0.00"}]
[null,"Местный бюджет",{"v":0,"d":"0.00"},{"v":0,"d":"0.00"}]
[null,"Областной бюджет",{"v":0,"d":"0.00"},{"v":0,"d":"0.00"}]
[null,"Целевой показатель 11. Количество общеобразовательных организаций, реализующих инициативные проекты на территории города Усолье-Сибирское.","-",4]
["Основное мероприятие 2.54. «Благоустройство территории МБОУ «Гимназия №1» по адресу: Иркутская область, город Усолье-Сибирское, ул. Толбухина, 21».\n ","Всего:",{"$f":"C515+C516","v":{"v":0,"d":"0.00"}},{"$f":"D515+D516","v":{"v":0,"d":"0.00"}}]
[null,"Местный бюджет",{"v":0,"d":"0.00"},{"v":0,"d":"0.00"}]
[null,"Областной бюджет",{"v":0,"d":"0.00"},{"v":0,"d":"0.00"}]
[null,"Целевой показатель 3.                     Удельный вес числа общеобразовательных учреждений, в которых проведен капитальный ремонт в общем числе общеобразовательных учреждений, здания которых требуют капитального ремонта (%)",55,0]
["Основное мероприятие 2.55. Обеспечение выплат ежемесячного денежного вознаграждения советникам директоров по воспитанию и взаимодействию с детскими общественными объединениями муниципальных общеобразовательных организаций Иркутской области","Всего:",{"$f":"C519","v":{"v":0,"d":"0.00"}},{"$f":"D519","v":{"v":1485,"d":"1,485.00"}}]
[null,"Федеральный бюджет",{"v":0,"d":"0.00"},{"$f":"1485000/1000","v":{"v":1485,"d":"1,485.00"}}]
[null,"Целевой показатель 10.                     Доля общеобразовательных организаций, в которых введена должность советник директора по взаимодействия с детскими общественными объединениями в государственных и муниципальных общеобразовательных организациях города Усолье-Сибирское(%)",100,100]
["Основное мероприятие 2.57. Любимой школе - красивый двор","Всего:",{"$f":"C522+C523","v":{"v":0,"d":"0.00"}},{"$f":"D522+D523","v":{"v":2200,"d":"2,200.00"}}]
[null,"Целевые средства",{"v":0,"d":"0.00"},{"$f":"220000/1000","v":{"v":220,"d":"220.00"}}]
[null,"Областной бюджет",{"v":0,"d":"0.00"},{"$f":"1980000/1000","v":{"v":1980,"d":"1,980.00"}}]
[null,"Целевой показатель 11. Количество общеобразовательных организаций, реализующих инициативные проекты на территории города Усолье-Сибирское.","-",4]
["Основное мероприятие 2.58. Радуга здоровья","Всего:",{"$f":"C526+C527","v":{"v":0,"d":"0.00"}},{"$f":"D526+D527","v":{"v":2000,"d":"2,000.00"}}]
[null,"Целевые средства",{"v":0,"d":"0.00"},{"$f":"200000/1000","v":{"v":200,"d":"200.00"}}]
[null,"Областной бюджет",{"v":0,"d":"0.00"},{"$f":"1800000/1000","v":{"v":1800,"d":"1,800.00"}}]
[null,"Целевой показатель 11. Количество общеобразовательных организаций, реализующих инициативные проекты на территории города Усолье-Сибирское.","-",4]
["Основное мероприятие 2.59. Спорт – движение, жизнь, здоровье!","Всего:",{"$f":"C530+C531","v":{"v":0,"d":"0.00"}},{"$f":"D530+D531","v":{"v":2200,"d":"2,200.00"}}]
[null,"Целевые средства",{"v":0,"d":"0.00"},{"$f":"220000/1000","v":{"v":220,"d":"220.00"}}]
[null,"Областной бюджет",{"v":0,"d":"0.00"},{"$f":"1980000/1000","v":{"v":1980,"d":"1,980.00"}}]
[null,"Целевой показатель 11. Количество общеобразовательных организаций, реализующих инициативные проекты на территории города Усолье-Сибирское.","-",4]
["Основное мероприятие 2.60. Зажигаем звезды!","Всего:",{"$f":"C534+C535","v":{"v":0,"d":"0.00"}},{"$f":"D534+D535","v":{"v":2223,"d":"2,223.00"}}]
[null,"Целевые средства",{"v":0,"d":"0.00"},{"$f":"223000/1000","v":{"v":223,"d":"223.00"}}]
[null,"Областной бюджет",{"v":0,"d":"0.00"},{"$f":"2000000/1000","v":{"v":2000,"d":"2,000.00"}}]
[null,"Целевой показатель 11. Количество общеобразовательных организаций, реализующих инициативные проекты на территории города Усолье-Сибирское.","-",4]
["Основное мероприятие 2.61. Оснащение  предметных кабинетов муниципальных общеобразовательных организаций в Иркутской области оборудованием, средствами обучения и воспитания","Всего:",{"$f":"C538+C539","v":{"v":0,"d":"0.00"}},{"$f":"D538+D539","v":{"v":1811.9,"d":"1,811.90"}}]
[null,"Областной бюджет",{"v":0,"d":"0.00"},{"$f":"91024.48/1000","v":{"v":91.02448,"d":"91.02"}}]
[null,"Федеральный бюджет",{"v":0,"d":"0.00"},{"$f":"1720875.52/1000","v":{"v":1720.87552,"d":"1,720.88"}}]
[null,"Целевой показатель 12.  Доля общеобразовательных учреждений, оснастивших предметные кабинеты оборудованием, средствами обучения и воспитания (%)","-",71]
["Подпрограмма 3 «Развитие дополнительного образования города Усолье-Сибирское» на 2019-2027 годы","Всего:",{"$f":"C542+C543+C544+C545","v":{"v":271615.65738,"d":"271,615.66"}},{"$f":"D542+D543+D544+D545","v":{"v":280215.40566999995,"d":"280,215.41"}}]
[null,"Целевые средства",{"v":0,"d":"0.00"},{"$f":"225000/1000","v":{"v":225,"d":"225.00"}}]
[null,"Местный бюджет",{"$f":"271615657.38/1000","v":{"v":271615.65738,"d":"271,615.66"}},{"$f":"276700025.71/1000","v":{"v":276700.02570999996,"d":"276,700.03"}}]
[null,"Областной бюджет ",{"v":0,"d":"0.00"},{"$f":"3290379.96/1000","v":{"v":3290.3799599999998,"d":"3,290.38"}}]
[null,"Федеральный бюджет",{"v":0,"d":"0.00"},{"v":0,"d":"0.00"}]
[null,"Целевой показатель 1.                       Доля детей, получающих услуги дополнительного образования, в общей численности детей в возрасте 5-18 лет (%)",80.1,71]
[null,"Целевой показатель 2.                      Доля детей в возрасте от 5 до 18 лет, имеющих право на получение дополнительного образования в рамках системы персонифицированного финансирования в общей численности детей в возрасте от 5 до 18 лет (%)",25,25]
[null,"Целевой показатель 3.                          Количество организаций дополнительного образования, реализующих инициативные проекты/проекты народных инициатив на территории города Усолье-Сибирское (ед.)","-",1]
["Основное мероприятие 3.1. Организация предоставления доступного современного качественного дополнительного образования","Всего:",{"$f":"C550+C551","v":{"v":271350.65738,"d":"271,350.66"}},{"$f":"D550+D551","v":{"v":275687.40967,"d":"275,687.41"}}]
[null,"Местный бюджет",{"$f":"271350657.38/1000","v":{"v":271350.65738,"d":"271,350.66"}},{"$f":"275687409.67/1000","v":{"v":275687.40967,"d":"275,687.41"}}]
[null,"Областной бюджет",{"v":0,"d":"0.00"},{"v":0,"d":"0.00"}]
[null,"Целевой показатель 1.                                 Доля детей, получающих услуги дополнительного образования, в общей численности детей в возрасте 5-18 лет (%)",80.1,71]
["Основное мероприятие 3.2.                     Проведение мероприятий с социально активными и творческими учащимися","Всего:",{"$f":"C554+C555","v":{"v":265,"d":"265.00"}},{"$f":"D554+D555","v":{"v":884.996,"d":"885.00"}}]
[null,"Местный бюджет",{"$f":"265000/1000","v":{"v":265,"d":"265.00"}},{"$f":"884996/1000","v":{"v":884.996,"d":"885.00"}}]
[null,"Областной бюджет ",{"v":0,"d":"0.00"},{"v":0,"d":"0.00"}]
[null,"Целевой показатель 1.                                       Доля детей, получающих услуги дополнительного образования, в общей численности детей в возрасте 5-18 лет (%)",80.1,71]
["Основное мероприятие 3.3. Проведение капитального ремонта МБУ ДО \"Детская художественная школа\"","Всего:",{"$f":"C558+C559","v":{"v":0,"d":"0.00"}},{"$f":"D558+D559","v":{"v":0,"d":"0.00"}}]
[null,"Местный бюджет",{"v":0,"d":"0.00"},{"v":0,"d":"0.00"}]
[null,"Областной бюджет",{"v":0,"d":"0.00"},{"v":0,"d":"0.00"}]
[null,"Целевой показатель 1.                        Доля детей, получающих услуги дополнительного образования, в общей численности детей в возрасте 5-18 лет (%)",80.1,71]
["Основное мероприятие 3.4. Капитальный ремонт МБУ ДО \"Детская юношеская спортивная школа № 1\"","Всего:",{"$f":"C562+C563","v":{"v":0,"d":"0.00"}},{"$f":"D562+D563","v":{"v":0,"d":"0.00"}}]
[null,"Местный бюджет",{"v":0,"d":"0.00"},{"v":0,"d":"0.00"}]
[null,"Областной бюджет",{"v":0,"d":"0.00"},{"v":0,"d":"0.00"}]
[null,"Целевой показатель 1.                          Доля детей, получающих услуги дополнительного образования, в общей численности детей в возрасте 5-18 лет (%)",80.1,71]
["Основное мероприятие 3.5. Проведение капитального ремонта МБУ ДО \"Детская музыкальная школа\"","Всего:",{"$f":"C566+C567","v":{"v":0,"d":"0.00"}},{"$f":"D566+D567","v":{"v":0,"d":"0.00"}}]
[null,"Местный бюджет",{"v":0,"d":"0.00"},{"v":0,"d":"0.00"}]
[null,"Областной бюджет",{"v":0,"d":"0.00"},{"v":0,"d":"0.00"}]
[null,"Целевой показатель 1.                          Доля детей, получающих услуги дополнительного образования, в общей численности детей в возрасте 5-18 лет (%)",80.1,71]
["Основное мероприятие 3.6. Приобретение спортивного инвентаря для МБУ ДО \"Детская юношеская спортивная школа № 1\"","Всего:",{"$f":"C570+C571","v":{"v":0,"d":"0.00"}},{"$f":"D570+D571","v":{"v":0,"d":"0.00"}}]
[null,"Местный бюджет",{"v":0,"d":"0.00"},{"v":0,"d":"0.00"}]
[null,"Областной бюджет ",{"v":0,"d":"0.00"},{"v":0,"d":"0.00"}]
[null,"Целевой показатель 1.                    Доля детей, получающих услуги дополнительного образования, в общей численности детей в возрасте 5-18 лет (%)",80.1,71]
["Основное мероприятие 3.7. Приобретение боксерского ринга для МБУ ДО \"Дом детского творчества\"","Всего:",{"v":0,"d":"0.00"},{"v":0,"d":"0.00"}]
[null,"Местный бюджет",{"v":0,"d":"0.00"},{"v":0,"d":"0.00"}]
[null,"Областной бюджет ",{"v":0,"d":"0.00"},{"v":0,"d":"0.00"}]
[null,"Целевой показатель 1.                          Доля детей, получающих услуги дополнительного образования, в общей численности детей в возрасте 5-18 лет (%)",80.1,71]
["Основное мероприятие 3.8. Приобретение музыкальных инструментов, оборудования и материалов в рамках национального мероприятия \"Культура\"","Всего:",{"$f":"C578+C579+C580","v":{"v":0,"d":"0.00"}},{"$f":"D578+D579+D580","v":{"v":0,"d":"0.00"}}]
[null,"Местный бюджет",{"v":0,"d":"0.00"},{"v":0,"d":"0.00"}]
[null,"Областной бюджет ",{"v":0,"d":"0.00"},{"v":0,"d":"0.00"}]
[null,"Федеральный бюджет",{"v":0,"d":"0.00"},{"v":0,"d":"0.00"}]
[null,"Целевой показатель 1.                          Доля детей, получающих услуги дополнительного образования, в общей численности детей в возрасте 5-18 лет (%)",80.1,71]
[]
["Основное мероприятие 3.9. Обустройство хоккейного корта, расположенного в районе пр-та Красных партизан,42","Всего:",{"$f":"C584+C585","v":{"v":0,"d":"0.00"}},{"$f":"D584+D585","v":{"v":0,"d":"0.00"}}]
[null,"Местный бюджет",{"v":0,"d":"0.00"},{"v":0,"d":"0.00"}]
[null,"Областной бюджет ",{"v":0,"d":"0.00"},{"v":0,"d":"0.00"}]
[null,"Целевой показатель 1.                          Доля детей, получающих услуги дополнительного образования, в общей численности детей в возрасте 5-18 лет (%)",80.1,71]
["Основное мероприятие 3.10. Обеспечение функционирования системы персонифицированного финансирования дополнительного образования детей","Всего:",{"$f":"C588+C589","v":{"v":0,"d":"0.0"}},{"$f":"D588+D589","v":{"v":0,"d":"0.0"}}]
[null,"Местный бюджет",{"v":0,"d":"0.00"},{"v":0,"d":"0.00"}]
[null,"Областной бюджет ",{"v":0,"d":"0.00"},{"v":0,"d":"0.00"}]
[null,"Целевой показатель 1.                          Доля детей, получающих услуги дополнительного образования, в общей численности детей в возрасте 5-18 лет (%)",80.1,71]
["Основное мероприятие 3.11. Современный инвентарь для сдачи норм ГТО - мотивация и успех детей молодежи, взрослого населения города к участию в комплексных программах ГТО (МБУДО «ДЮСШ №1») в рамках реализации инициативных проектов, выдвигаемых для получения финансовой поддержки из бюджета Иркутской области","Всего:",{"$f":"C592+C593","v":{"v":0,"d":"0.00"}},{"$f":"D592+D593","v":{"v":0,"d":"0.00"}}]
[null,"Целевые средства",{"v":0,"d":"0.00"},{"v":0,"d":"0.00"}]
[null,"Областной бюджет ",{"v":0,"d":"0.00"},{"v":0,"d":"0.00"}]
[null,"Целевой показатель 3.                          Количество организаций дополнительного образования, реализующих инициативные проекты/проекты народных инициатив на территории города Усолье-Сибирское (ед.)","-",1]
["Основное мероприятие 3.12. Приобретение баскетбольных стоек для МБУДО «ДЮСШ №1»","Всего:",{"$f":"C596+C597","v":{"v":0,"d":"0.00"}},{"$f":"D596+D597","v":{"v":0,"d":"0.00"}}]
[null,"Местный бюджет",{"v":0,"d":"0.00"},{"v":0,"d":"0.00"}]
[null,"Областной бюджет ",{"v":0,"d":"0.00"},{"v":0,"d":"0.00"}]
[null,"Целевой показатель 3.                          Количество организаций дополнительного образования, реализующих инициативные проекты/проекты народных инициатив на территории города Усолье-Сибирское (ед.)","-",1]
["Основное мероприятие 3.13. Приобретение микроавтобуса для МБУДО «ДДТ» (не менее 23 мест","Всего:",{"$f":"C600+C601","v":{"v":0,"d":"0.00"}},{"$f":"D600+D601","v":{"v":0,"d":"0.00"}}]
[null,"Местный бюджет",{"v":0,"d":"0.00"},{"v":0,"d":"0.00"}]
[null,"Областной бюджет ",{"v":0,"d":"0.00"},{"v":0,"d":"0.00"}]
[null,"Целевой показатель 3.                          Количество организаций дополнительного образования, реализующих инициативные проекты/проекты народных инициатив на территории города Усолье-Сибирское (ед.)","-",1]
["Основное мероприятие 3.14. Благоустройство территории детского клуба по месту жительства \"Перемена\" МБУДО \"ДДТ\" (ул. Клары Цеткин, 8)","Всего:",{"$f":"C604+C605","v":{"v":0,"d":"0.00"}},{"$f":"D604+D605","v":{"v":0,"d":"0.00"}}]
[null,"Местный бюджет",{"v":0,"d":"0.00"},{"v":0,"d":"0.00"}]
[null,"Областной бюджет",{"v":0,"d":"0.00"},{"v":0,"d":"0.00"}]
[null,"Целевой показатель 3.                          Количество организаций дополнительного образования, реализующих инициативные проекты/проекты народных инициатив на территории города Усолье-Сибирское (ед.)","-",1]
["Основное мероприятие 3.15. Благоустройство части территории лыжной базы \"Снежинка\" (МБУДО «ДЮСШ № 1») в рамках реализации инициативных проектов, выдвигаемых для получения финансовой поддержки из бюджета Иркутской области","Всего:",{"$f":"C608+C609+C610","v":{"v":0,"d":"0.00"}},{"$f":"D608+D609+D610","v":{"v":0,"d":"0.00"}}]
[null,"Целевые средства",{"v":0,"d":"0.00"},{"v":0,"d":"0.00"}]
[null,"Местный бюджет",{"v":0,"d":"0.00"},{"v":0,"d":"0.00"}]
[null,"Областной бюджет",{"v":0,"d":"0.00"},{"v":0,"d":"0.00"}]
[null,"Целевой показатель 3.                          Количество организаций дополнительного образования, реализующих инициативные проекты/проекты народных инициатив на территории города Усолье-Сибирское (ед.)","-",1]
["Основное мероприятие 3.16. Дзюдо - спортивная площадка (МБУДО «ДЮСШ № 1») в рамках реализации инициативных проектов, выдвигаемых для получения финансовой поддержки из бюджета Иркутской области","Всего:",{"$f":"C613+C614+C615","v":{"v":0,"d":"0.00"}},{"$f":"D613+D614+D615","v":{"v":0,"d":"0.00"}}]
[null,"Целевые средства",{"v":0,"d":"0.00"},{"v":0,"d":"0.00"}]
[null,"Местный бюджет",{"v":0,"d":"0.00"},{"v":0,"d":"0.00"}]
[null,"Областной бюджет",{"v":0,"d":"0.00"},{"v":0,"d":"0.00"}]
[null,"Целевой показатель 3.                          Количество организаций дополнительного образования, реализующих инициативные проекты/проекты народных инициатив на территории города Усолье-Сибирское (ед.)","-",1]
["Основное мероприятие 3.17. Музей народного образования г. Усолье-Сибирское: создаем историю вместе (МБУДО «ДДТ») в рамках реализации инициативных проектов, выдвигаемых для получения финансовой поддержки из бюджета Иркутской области","Всего:",{"$f":"C618+C619+C620","v":{"v":0,"d":"0.00"}},{"$f":"D618+D619+D620","v":{"v":0,"d":"0.00"}}]
[null,"Целевые средства",{"v":0,"d":"0.00"},{"v":0,"d":"0.00"}]
[null,"Местный бюджет",{"v":0,"d":"0.00"},{"v":0,"d":"0.00"}]
[null,"Областной бюджет",{"v":0,"d":"0.00"},{"v":0,"d":"0.00"}]
[null,"Целевой показатель 3.                          Количество организаций дополнительного образования, реализующих инициативные проекты/проекты народных инициатив на территории города Усолье-Сибирское (ед.)","-",1]
["Основное мероприятие 3.19. Спортивно - игровая площадка","Всего:",{"$f":"C623+C624","v":{"v":0,"d":"0.00"}},{"$f":"D623+D624","v":{"v":2225,"d":"2,225.00"}}]
[null,"Целевые средства",{"v":0,"d":"0.00"},{"$f":"225000/1000","v":{"v":225,"d":"225.00"}}]
[null,"Областной бюджет",{"v":0,"d":"0.00"},{"$f":"2000000/1000","v":{"v":2000,"d":"2,000.00"}}]
[null,"Целевой показатель 3.                          Количество организаций дополнительного образования, реализующих инициативные проекты/проекты народных инициатив на территории города Усолье-Сибирское (ед.)","-",1]
["Основное мероприятие 3.20. Приобретение и установка спортивного оборудования для спортивной площадки МБУДО \"ДЮСШ №1\"","Всего:",{"$f":"C627+C628","v":{"v":0,"d":"0.00"}},{"$f":"D627+D628","v":{"v":1418,"d":"1,418.00"}}]
[null,"Целевые средства",{"v":0,"d":"0.00"},{"$f":"127620.04/1000","v":{"v":127.62003999999999,"d":"127.62"}}]
[null,"Областной бюджет",{"v":0,"d":"0.00"},{"$f":"1290379.96/1000","v":{"v":1290.37996,"d":"1,290.38"}}]
[null,"Целевой показатель 3.                          Количество организаций дополнительного образования, реализующих инициативные проекты/проекты народных инициатив на территории города Усолье-Сибирское (ед.)","-",1]
["Подпрограмма 4 «Организация отдыха и занятости детей в каникулярное время» на 2019-2027 годы","Всего:",{"$f":"C631+C632","v":{"v":24891.742899999997,"d":"24,891.74"}},{"$f":"D631+D632","v":{"v":26189.05412,"d":"26,189.05"}}]
[null,"Местный бюджет",{"$f":"15536478.9/1000","v":{"v":15536.4789,"d":"15,536.48"}},{"$f":"16833790.12/1000","v":{"v":16833.79012,"d":"16,833.79"}}]
[null,"Областной бюджет ",{"$f":"9355264/1000","v":{"v":9355.264,"d":"9,355.26"}},{"$f":"9355264/1000","v":{"v":9355.264,"d":"9,355.26"}}]
[null,"Целевой показатель 1.                        Количество детей, охваченных отдыхом в детских оздоровительных лагерях (чел)",{"v":1140,"d":"1,140"},{"v":1140,"d":"1,140"}]
[null,"Целевой показатель 2.              Количество детей, охваченных отдыхом в лагерях с дневным пребыванием детей (чел)",{"v":1000,"d":"1,000"},{"v":1015,"d":"1,015"}]
[null,"Целевой показатель 3.                      Количество молодежи и несовершеннолетних, в том числе состоящих на учете в общеобразовательных учреждениях и правоохранительных органах, охваченных трудовой занятостью в каникулярное время (чел)",150,150]
["Основное мероприятие 4.1. Организация отдыха и оздоровления детей и подростков на базе детских оздоровительных лагерей","Всего:",{"$f":"C637+C638","v":{"v":7770.62871,"d":"7,770.63"}},{"$f":"D637+D638","v":{"v":9389.06114,"d":"9,389.06"}}]
[null,"Местный бюджет",{"$f":"7770628.71/1000","v":{"v":7770.62871,"d":"7,770.63"}},{"$f":"9389061.14/1000","v":{"v":9389.06114,"d":"9,389.06"}}]
[null,"Областной бюджет ",{"v":0,"d":"0.00"},{"v":0,"d":"0.00"}]
[null,"Целевой показатель 1.                 Количество детей, охваченных отдыхом в детских оздоровительных лагерях (чел)",{"v":1140,"d":"1,140"},{"v":1140,"d":"1,140"}]
["Основное мероприятие 4.2. Организация отдыха и занятости молодежи и несовершеннолетних на базе общеобразовательных учреждений","Всего:",{"$f":"C641+C642","v":{"v":9949.42819,"d":"9,949.43"}},{"$f":"D641+D642","v":{"v":9625.306980000001,"d":"9,625.31"}}]
[null,"Местный бюджет",{"$f":"7123128.19/1000","v":{"v":7123.12819,"d":"7,123.13"}},{"$f":"6799006.98/1000","v":{"v":6799.00698,"d":"6,799.01"}}]
[null,"Областной бюджет ",{"$f":"2826300/1000","v":{"v":2826.3,"d":"2,826.30"}},{"$f":"2826300/1000","v":{"v":2826.3,"d":"2,826.30"}}]
[null,"Целевой показатель 2.                      Количество детей, охваченных отдыхом в лагерях с дневным пребыванием детей (чел)",{"v":1000,"d":"1,000"},{"v":1015,"d":"1,015"}]
[null,"Целевой показатель 3.                   Количество молодежи и несовершеннолетних, в том числе состоящих на учете в общеобразовательных учреждениях и правоохранительных органах, охваченных трудовой занятостью в каникулярное время (чел)",150,150]
["Основное мероприятие 4.3. Укрепление материально-технической базы детского оздоровительного лагеря «Смена» (Софинансирование расходных обязательств органов местного самоуправления муниципальных образований Иркутской области по вопросам местного значения по организации отдыха детей в каникулярное время на укрепление материально-технической базы муниципальных учреждений, оказывающих услуги по организации отдыха и оздоровления детей в Иркутской области)","Всего:",{"$f":"C646+C647","v":{"v":0,"d":"0.00"}},{"$f":"D646+D647","v":{"v":0,"d":"0.00"}}]
[null,"Местный бюджет",{"v":0,"d":"0.00"},{"v":0,"d":"0.00"}]
[null,"Областной бюджет ",{"v":0,"d":"0.00"},{"v":0,"d":"0.00"}]
[null,"Целевой показатель 1.                     Количество детей, охваченных отдыхом в детских оздоровительных лагерях (чел)",{"v":1140,"d":"1,140"},{"v":1140,"d":"1,140"}]
["Основное мероприятие 4.4. Укрепление материально-технической базы детского оздоровительного лагеря «Юность» (Софинансирование расходных обязательств органов местного самоуправления муниципальных образований Иркутской области по вопросам местного значения по организации отдыха детей в каникулярное время на укрепление материально-технической базы муниципальных учреждений, оказывающих услуги по организации отдыха и оздоровления детей в Иркутской области)","Всего:",{"$f":"C650+C651","v":{"v":3514.132,"d":"3,514.13"}},{"$f":"D650+D651","v":{"v":3514.1320000000005,"d":"3,514.13"}}]
[null,"Местный бюджет",{"$f":"316272/1000","v":{"v":316.272,"d":"316.27"}},{"$f":"316272.01/1000","v":{"v":316.27201,"d":"316.27"}}]
[null,"Областной бюджет ",{"$f":"3197860/1000","v":{"v":3197.86,"d":"3,197.86"}},{"$f":"3197859.99/1000","v":{"v":3197.8599900000004,"d":"3,197.86"}}]
[null,"Целевой показатель 1.                                 Количество детей, охваченных отдыхом в детских оздоровительных лагерях (чел)",{"v":1140,"d":"1,140"},{"v":1140,"d":"1,140"}]
["Основное мероприятие 4.5. «Укрепление материально-технической базы детского оздоровительного лагеря «Восток».","Всего:",{"$f":"C654+C655","v":{"v":3657.5539999999996,"d":"3,657.55"}},{"$f":"D654+D655","v":{"v":3660.5539999999996,"d":"3,660.55"}}]
[null,"Местный бюджет",{"$f":"326450/1000","v":326.45},{"$f":"329449.99/1000","v":{"v":329.44999,"d":"329.45"}}]
[null,"Областной бюджет ",{"$f":"3331104/1000","v":{"v":3331.104,"d":"3,331.10"}},{"$f":"3331104.01/1000","v":{"v":3331.1040099999996,"d":"3,331.10"}}]
[null,"Целевой показатель 1.                                 Количество детей, охваченных отдыхом в детских оздоровительных лагерях (чел)",{"v":1140,"d":"1,140"},{"v":1140,"d":"1,140"}]
["Подпрограмма 5 «Обеспечение организационных, информационных и методических профессиональных потребностей педагогических и руководящих работников образовательных учреждений» ","Всего:",{"$f":"C658+C659","v":{"v":12717.888359999999,"d":"12,717.89"}},{"$f":"D658+D659","v":{"v":13108.48836,"d":"13,108.49"}}]
[null,"Местный бюджет",{"$f":"12717888.36/1000","v":{"v":12717.888359999999,"d":"12,717.89"}},{"$f":"13108488.36/1000","v":{"v":13108.48836,"d":"13,108.49"}}]
[null,"Областной бюджет",{"v":0,"d":"0.00"},{"v":0,"d":"0.00"}]
[null,"Целевой показатель 1.                    Доля педагогических работников образовательных учреждений, имеющих аттестацию, в общей численности педагогических работников образовательных учреждений  (%)",62,59]
[null,"Целевой показатель 2.                       Удельный вес числа образовательных учреждений, обеспечивающих предоставление нормативно закрепленного перечня сведений о своей деятельности на официальных сайтах, в общем числе образовательных учреждений (%)",100,100]
[null,"Целевой показатель 3.                     Количество муниципальных образовательных учреждений, охваченных организационно - управленческими, информационно-методическими услугами (ед.)",44,44]
["Основное мероприятие 5.1. Создание организационно - управленческих, информационно-методических условий, ориентированных на обеспечение доступности качественного образования","Всего:",{"$f":"C664+C665","v":{"v":12717.888359999999,"d":"12,717.89"}},{"$f":"D664+D665","v":{"v":13108.48836,"d":"13,108.49"}}]
[null,"Местный бюджет",{"$f":"12717888.36/1000","v":{"v":12717.888359999999,"d":"12,717.89"}},{"$f":"13108488.36/1000","v":{"v":13108.48836,"d":"13,108.49"}}]
[null,"Областной бюджет ",{"v":0,"d":"0.00"},{"v":0,"d":"0.00"}]
[null,"Целевой показатель 1.                       Доля педагогических работников образовательных учреждений, имеющих аттестацию, в общей численности педагогических работников образовательных учреждений  (%)",62,59]
[null,"Целевой показатель 2.                                 Удельный вес числа образовательных учреждений, обеспечивающих предоставление нормативно закрепленного перечня сведений о своей деятельности на официальных сайтах, в общем числе образовательных учреждений (%)",100,100]
[null,"Целевой показатель 3.                            Количество муниципальных образовательных учреждений, охваченных организационно - управленческими, информационно-методическими услугами (ед.)",44,44]
[]
["Подпрограмма 6. «Обеспечение условий реализации национального проекта «Образование» на муниципальном уровне»                            на 2020-2027 годы","Всего:",{"$f":"C671+C672","v":{"v":673.1,"d":"673.10"}},{"$f":"D671+D672","v":{"v":673.1,"d":"673.10"}}]
[null,"Местный бюджет ",{"$f":"673100/1000","v":{"v":673.1,"d":"673.10"}},{"$f":"673100/1000","v":{"v":673.1,"d":"673.10"}}]
[null,"Областной бюджет",{"v":0,"d":"0.00"},{"v":0,"d":"0.00"}]
[null,"Целевой показатель 1.              Доля детей в возрасте от 5 до 18 лет, охваченных дополнительным образованием (%)",80.1,71]
[null,"Целевой показатель 2.                     Доля учителей общеобразовательных организаций, вовлеченных в национальную систему профессионального роста педагогических работников (%)",36,36]
[null,"Целевой показатель 3.   Доля образовательных организаций, расположенных на территории города Усолье-Сибирское, в которых внедрена целевая модель цифровой образовательной среды в образовательных организациях, реализующих образовательные программы общего образования (%)",100,100]
[null,"Целевой показатель 4.                           Доля муниципальных образовательных организаций, в которых обновлено содержание и методы обучения предметной области «Технология» и других предметных областей (%)",71.4,71.4]
[null,"Целевой показатель 5.           Количество услуг психолого – педагогической, методической и консультативной помощи родителям (законным представителям) детей, а также гражданам, желающим принять на воспитание в свои семьи детей, оставшихся без попечения родителей (ед.)",502,502]
[null,"Целевой показатель 6.                   Доля обучающихся общеобразовательных организаций города Усолье – Сибирское, вовлеченных в профориентационную деятельность (%)",100,100]
[null,"Целевой показатель 7.                            Доступность дошкольного образования для детей в возрасте до трех лет (%)",100,100]
[null,"Целевой показатель 8.                 Количество граждан города Усолье-Сибирское, ежегодно проходящих обучение по программам непрерывного образования (дополнительным образовательным программам и программам профессионального обучения) в образовательных организациях высшего образования, профессиональных образовательных организациях, организациях дополнительного профессионального образования  (чел)",945,945]
["Основное мероприятие 6.1. Проект  «Успех каждого ребенка»","Всего:",{"$f":"C682+C683","v":{"v":508.2,"d":"508.20"}},{"$f":"D682+D683","v":{"v":508.2,"d":"508.20"}}]
[null,"Местный бюджет ",{"$f":"508200/1000","v":{"v":508.2,"d":"508.20"}},{"$f":"508200/1000","v":{"v":508.2,"d":"508.20"}}]
[null,"Областной бюджет",{"v":0,"d":"0.00"},{"v":0,"d":"0.00"}]
[null,"Целевой показатель 1.              Доля детей в возрасте от 5 до 18 лет, охваченных дополнительным образованием (%)",80.1,71]
["Основное мероприятие 6.2. Проект «Учитель будущего»","Всего:",{"$f":"C686+C687","v":{"v":164.9,"d":"164.90"}},{"$f":"D686+D687","v":{"v":164.9,"d":"164.90"}}]
[null,"Местный бюджет ",{"$f":"164900/1000","v":{"v":164.9,"d":"164.90"}},{"$f":"164900/1000","v":{"v":164.9,"d":"164.90"}}]
[null,"Областной бюджет",{"v":0,"d":"0.00"},{"v":0,"d":"0.00"}]
[null,"Целевой показатель 2.                     Доля учителей общеобразовательных организаций, вовлеченных в национальную систему профессионального роста педагогических работников (%)",36,36]
[]
["                        Мэр города                                                          М.В. Торопкин"]